{"text_format":"1","workbook":"xlsx","n_sheets":5,"sheets":["Order form","Pricelist","Languages","LangBackup","Setup"],"not_rendered":{"charts":0,"images":1,"macros":1,"external_links":1,"defined_names":4,"comments":0,"pivot_tables":0},"unopened":[],"bounds":{"document_bytes":16777216,"sheet_cells":100000,"rows_first":2000,"rows_last":500,"rows_between":2000,"halvings":0,"cell_chars":16384,"cell_head_chars":4096},"cells_cut":0,"cells_raw":0,"read":"whole","date_system":"1900"}

{"sheet":"Order form","index":0,"n_rows":113,"n_cols":39,"rows_kept":113,"cut":false,"hidden":false,"merged":[[70,16,70,35],[71,16,71,26],[71,27,71,28],[71,29,71,35],[2,12,2,27],[12,5,12,13],[12,28,12,35],[54,16,54,35],[13,5,13,13],[12,18,12,25],[21,16,21,35],[13,18,13,25],[13,28,13,35],[14,5,14,13],[14,28,14,35],[14,18,14,25],[15,1,15,35],[17,1,17,6],[18,1,18,6],[17,7,17,35],[26,16,26,25],[26,27,26,35],[34,16,34,35],[25,16,25,25],[1,6,1,11],[1,30,1,35],[11,5,11,13],[7,5,7,13],[8,5,8,13],[9,5,9,13],[10,5,10,13],[11,18,11,25],[7,18,7,25],[8,18,8,25],[9,18,9,25],[10,18,10,25],[2,30,2,35],[5,28,5,35],[11,28,11,35],[7,28,7,35],[8,28,8,35],[9,28,9,35],[10,28,10,35],[5,5,5,13],[5,18,5,25],[6,5,6,13],[6,18,6,25],[1,12,1,27],[25,27,25,35],[18,7,18,35],[22,16,22,35],[24,16,24,35],[48,16,48,35],[43,16,43,35],[47,16,47,25],[27,16,27,35],[28,16,28,35],[29,16,29,35],[31,16,31,35],[40,16,40,35],[41,16,41,35],[39,16,39,35],[35,16,35,35],[33,16,33,35],[23,16,23,35],[30,16,30,35],[37,16,37,35],[38,16,38,35],[32,16,32,35],[49,16,49,35],[50,16,50,35],[58,16,58,35],[59,16,59,35],[63,16,63,35],[64,16,64,35],[44,16,44,35],[46,16,46,35],[45,16,45,35],[56,16,56,35],[52,16,52,35],[53,16,53,35],[57,16,57,35],[55,16,55,35],[51,16,51,21],[51,22,51,26],[51,27,51,29],[51,30,51,35],[90,30,90,35],[112,7,112,10],[105,1,110,35],[99,16,99,35],[92,16,92,27],[92,30,92,35],[97,16,97,35],[100,16,100,35],[112,25,112,35],[112,11,112,12],[112,13,112,15],[96,16,96,35],[95,16,95,35],[50,1,50,14],[68,16,68,35],[62,16,62,35],[65,16,65,35],[98,16,98,35],[81,16,81,35],[82,16,82,35],[78,16,78,26],[78,27,78,28],[78,29,78,35],[80,16,80,35],[79,16,79,35],[89,16,89,27],[91,16,91,27],[89,30,89,35],[91,30,91,35],[86,16,86,35],[69,16,69,35],[72,16,72,35],[73,16,73,35],[74,16,74,35],[84,16,84,35],[85,16,85,35],[90,16,90,27]]}
["OMEGA-F20210401EN"]
[100,"Language",null,null,null,null,"English",null,null,null,null,null,"OMEGA STAIRLIFT",null,null,null,null,null,null,null,null,null,null,null,null,null,null,null,"Date",null,{"$f":"TODAY()","v":"2021-04-16"}]
[110,null,null,null,null,null,null,null,null,null,null,null,"ORDER FORM",null,null,null,null,null,null,null,null,null,null,null,null,null,null,null,"Version",null,"OMEGA.LE.2021.A"]
[]
[null,null,null,null,null,null,null,null,null,null,null,null,null,null,"Distributor: (always fill out)",null,null,null,null,null,null,null,null,null,null,null,"Delivery address: (always fill out)"]
[120,"Company:",null,null,null,"Lehner Lifttechnik GmbH",null,null,null,null,null,null,null,null,"Company",null,null,null,null,null,null,null,null,null,null,null,"Company"]
[130,"Name:",null,null,null,"Max Lehner",null,null,null,null,null,null,null,null,"Name:",null,null,null,null,null,null,null,null,null,null,null,"Name:"]
[140,"Adress:",null,null,null,"Salling 8",null,null,null,null,null,null,null,null,"Address",null,null,null,null,null,null,null,null,null,null,null,"Address"]
[150,"Postcode:",null,null,null,"A - 4724",null,null,null,null,null,null,null,null,"Postcode",null,null,null,null,null,null,null,null,null,null,null,"Postcode"]
[160,"City:",null,null,null,"Neukirchen am Walde",null,null,null,null,null,null,null,null,"City",null,null,null,null,null,null,null,null,null,null,null,"City"]
[170,"Country:",null,null,null,"Austria",null,null,null,null,null,null,null,null,"Country",null,null,null,null,null,null,null,null,null,null,null,"Country"]
[180,"Phone no:",null,null,null,"+43 7278 3514-0",null,null,null,null,null,null,null,null,"Telephone",null,null,null,null,null,null,null,null,null,null,null,"Telephone"]
[190,"E-mail:",null,null,null,"office@lehnerlifttechnik.at",null,null,null,null,null,null,null,null,"Email"]
[200,"ID:",null,null,null,"ATU22360601",null,null,null,null,null,null,null,null,"ID:"]
[210,"VAT ID:",null,null,null,"ATU22360601",null,null,null,null,null,null,null,null,"VAT ID:"]
[220,"Pick up address for lifts: Spedition Englmayer, Wiesenstrasse 71, 4600 Wels, Austria"]
[]
[null,"Production no.",null,null,null,null,null,"Order reference name (or number)"]
[230]
[]
[null,"Rail specification"]
[1000,"Installation location",null,null,null,null,null,null,null,null,null,null,null,null,null,null,"Indoor"]
[1010,"Installation side",null,null,null,null,null,null,null,null,null,null,null,null,null,null,"Right"]
[1020,"Rail type",null,null,null,null,null,null,null,null,null,null,null,null,null,null,"Rail with curves"]
[1030,"Rail length in meters rounded",null,null,null,null,null,null,null,null,null,null,null,null,null,null,3]
[1040,"Lower stop",null,null,null,null,null,null,null,null,null,null,null,null,null,null,"Straight",null,null,null,null,null,null,null,null,null,null,{"$f":"IF(Q25=\"straight start with bottom overrun\",\"mm from first step to end of platform\", \"\")","v":""}]
[1050,"Upper stop",null,null,null,null,null,null,null,null,null,null,null,null,null,null,"Straight at last step",null,null,null,null,null,null,null,null,null,null,{"$f":"IF(Q26=\"straight top overrun\",\"mm from last step to end of platform\", \"\")","v":""}]
[1060,"Number of 90° curves"]
[1070,"Number of 180° curves"]
[1080,"Number of special curves"]
[1090,"Number of negative curves"]
[1100,"Horizontal drive (inclination <20°)",null,null,null,null,null,null,null,null,null,null,null,null,null,null,"No"]
[1120,"Length of horizontal rail in meters"]
[1110,"Number of vertical bends"]
[1130,"Number of intermediate stops"]
[]
[null,"Motor Specification"]
[1140,"Power supply",null,null,null,null,null,null,null,null,null,null,null,null,null,null,"1 x 230V(standard)"]
[1150,"Frequent use",null,null,null,null,null,null,null,null,null,null,null,null,null,null,"No"]
[1160,"UPS - battery backup (max 1,1kW)",null,null,null,null,null,null,null,null,null,null,null,null,null,null,"No"]
[1170,"Type of drive",null,null,null,null,null,null,null,null,null,null,null,null,null,null,"1.1 kW compact drive including controls (indoor standard)"]
[1180,"Big drive box"]
[]
[null,"General platform specifications"]
[1190,"Excecution",null,null,null,null,null,null,null,null,null,null,null,null,null,null,"Platform + rail (standard)"]
[1200,"Folding seat",null,null,null,null,null,null,null,null,null,null,null,null,null,null,"Without folding seat"]
[1210,"Loading capacity",null,null,null,null,null,null,null,null,null,null,null,null,null,null,"225 kg"]
[1220,"Platform dimension",null,null,null,null,null,null,null,null,null,null,null,null,null,null,"800 x 1000mm",null,null,null,null,null,null,null,null,null,null,"x",null,"mm"]
[1230,"Folding mechanism",null,null,null,null,null,null,null,null,null,null,null,null,null,null,"Automatic folding of platform"]
[1240,"Loading ramps",null,null,null,null,null,null,null,null,null,null,null,null,null,null,"Upper and lower ramp",null,null,null,null,null,null,null,null,null,null,"RAL:",null,"RAL:"]
[1250,"Special 90° side access ramp (folds 85°)",null,null,null,null,null,null,null,null,null,null,null,null,null,null,"No (standard)"]
[1260,"Ramps length",null,null,null,null,null,null,null,null,null,null,null,null,null,null,"Upper ramp",null,null,null,null,null,"150mm",null,null,null,null,"Lower ramp",null,null,"200mm (standard)"]
[1270,"Ramps surface",null,null,null,null,null,null,null,null,null,null,null,null,null,null,"Same colour as platform"]
[1280,"Folding sideboard",null,null,null,null,null,null,null,null,null,null,null,null,null,null,"No (standard)"]
[1290,"Platform control",null,null,null,null,null,null,null,null,null,null,null,null,null,null,"All commands on controls on spiral cable (standard)"]
[1300,"External landing controls (always radio)",null,null,null,null,null,null,null,null,null,null,null,null,null,null,"Remote with Membrane keypad (standard)"]
[1310,"Type of key",null,null,null,null,null,null,null,null,null,null,null,null,null,null,"Mini key"]
[1320,"Total no. of external landing controls",null,null,null,null,null,null,null,null,null,null,null,null,null,null,{"$f":"Q35+2","v":2}]
[1330,"Position of the external landing controls",null,null,null,null,null,null,null,null,null,null,null,null,null,null,"Wall mounted (standard)"]
[1340,"Removing key in ON position",null,null,null,null,null,null,null,null,null,null,null,null,null,null,"No (standard)"]
[]
[null,"Safety features acc. to EN 81-40"]
[1360,"Safety bottom",null,null,null,null,null,null,null,null,null,null,null,null,null,null,"Yes"]
[1370,"Lateral contact bars",null,null,null,null,null,null,null,null,null,null,null,null,null,null,"Yes"]
[1380,"Overload signal",null,null,null,null,null,null,null,null,null,null,null,null,null,null,"Yes"]
[1400,"Visual signal (bespoke solution)",null,null,null,null,null,null,null,null,null,null,null,null,null,null,"No"]
[]
[null,"Further specifications"]
[1410,"Protective cover for outdoor platform",null,null,null,null,null,null,null,null,null,null,null,null,null,null,"No"]
[1420,"Plastic cover for outdoor compact motor",null,null,null,null,null,null,null,null,null,null,null,null,null,null,"No"]
[1430,"Padlock against unfolding of manual platform",null,null,null,null,null,null,null,null,null,null,null,null,null,null,"No (standard)"]
[1440,"Rail fillings",null,null,null,null,null,null,null,null,null,null,null,null,null,null,"None",null,null,null,null,null,null,null,null,null,null,null,null,"pcs"]
[1450,"Safety pipe",null,null,null,null,null,null,null,null,null,null,null,null,null,null,"No"]
[1460,"Installation pipe",null,null,null,null,null,null,null,null,null,null,null,null,null,null,"No"]
[1470,"Reinforced upper rail pipe",null,null,null,null,null,null,null,null,null,null,null,null,null,null,"No"]
[1480]
[1490]
[1500]
[1510,"Warranty",null,null,null,null,null,null,null,null,null,null,null,null,null,null,24,null,null,null,null,null,null,null,null,null,null,null,null,"months"]
[1520,"Stainless steel label",null,null,null,null,null,null,null,null,null,null,null,null,null,null,"None"]
[1530,"Rope tensioner",null,null,null,null,null,null,null,null,null,null,null,null,null,null,"No"]
[1540,"Transport box",null,null,null,null,null,null,null,null,null,null,null,null,null,null,"Q1 - Standardbox"]
[1550]
[1560]
[1570,"Old overspeed governor",null,null,null,null,null,null,null,null,null,null,null,null,null,null,"No"]
[1580,"Special brushes for upper trolley",null,null,null,null,null,null,null,null,null,null,null,null,null,null,"No"]
[1590,"Drawing time urgency in days"]
[]
[null,"Surface treatment"]
[1600,"Platform and carriage",null,null,null,null,null,null,null,null,null,null,null,null,null,null,"RAL 7035 (standard)",null,null,null,null,null,null,null,null,null,null,null,null,{"$f":"IF(ISNUMBER(FIND(\"Special\",Q90)),\"RAL:\",\"\")","v":""},null,null,null,null,null,null,null,null,{"$f":"IF(Q22=\"outdoor\",\"Please remember to choose surface treatment for outdoor\", \"\")","v":""}]
[1610,"Drive",null,null,null,null,null,null,null,null,null,null,null,null,null,null,"RAL 7035 (standard)",null,null,null,null,null,null,null,null,null,null,null,null,{"$f":"IF(ISNUMBER(FIND(\"Special\",Q91)),\"RAL:\",\"\")","v":""},null,null,null,null,null,null,null,null,{"$f":"IF(Q22=\"outdoor\",\"Please remember to choose surface treatment for outdoor\", \"\")","v":""}]
[1620,"Rail and brackets",null,null,null,null,null,null,null,null,null,null,null,null,null,null,"RAL 7035 (standard)",null,null,null,null,null,null,null,null,null,null,null,null,{"$f":"IF(ISNUMBER(FIND(\"Special\",Q92)),\"RAL:\",\"\")","v":""},null,null,null,null,null,null,null,null,{"$f":"IF(Q22=\"outdoor\",\"Please remember to choose surface treatment for outdoor\", \"\")","v":""}]
[1640,"Pillars",null,null,null,null,null,null,null,null,null,null,null,null,null,null,"RAL 7035 (standard)",null,null,null,null,null,null,null,null,null,null,null,null,{"$f":"IF(ISNUMBER(FIND(\"Special\",Q93)),\"RAL:\",\"\")","v":""},null,null,null,null,null,null,null,null,{"$f":"IF(Q22=\"outdoor\",\"Please remember to choose surface treatment for outdoor\", \"\")","v":""}]
[]
[null,"Supporting structure"]
[1650,"Fixing of the rails",null,null,null,null,null,null,null,null,null,null,null,null,null,null,"On the pillars only"]
[1660,"Arrangement of pillars",null,null,null,null,null,null,null,null,null,null,null,null,null,null,"On the steps (standard)"]
[1670,"Vertical adjustment slot on pillars",null,null,null,null,null,null,null,null,null,null,null,null,null,null,"Yes"]
[1680,"Distance between pillars > 0,6m",null,null,null,null,null,null,null,null,null,null,null,null,null,null,"No"]
[1690,"Pillar base",null,null,null,null,null,null,null,null,null,null,null,null,null,null,"not specified"]
[1700]
[]
[]
[null,"Additional information"]
[]
[1710]
[]
[]
[]
[]
[]
[]
[240,"Delivery date",null,null,null,null,null,"Week",null,null,null,51,null,2021,null,null,null,null,null,null,null,"Prepared by"]

{"sheet":"Pricelist","index":1,"n_rows":84,"n_cols":9,"rows_kept":84,"cut":false,"hidden":true,"merged":[[1,2,1,6],[6,3,6,5],[35,1,45,1],[17,1,30,1],[31,1,34,1],[10,1,15,1],[51,1,55,1],[66,1,69,1],[70,1,79,1],[83,2,83,5],[46,1,50,1]]}
[null,"Pricelist","SP-OMEGA-F",null,null,null,{"$f":"'Order form'!AE3","v":"OMEGA.LE.2021.A"}]
[null,"Order reference name",{"$f":"'Order form'!H19","v":0},null,null,null,null,null,1]
[null,"Customer / Client ","Lehner Lifttechnik"]
[null,null,{"$f":"'Order form'!F9","v":"A - 4724"}]
[null,null,{"$f":"'Order form'!F10","v":"Neukirchen am Walde"}]
[null,null,{"$f":"'Order form'!F11","v":"Austria"}]
[null,null,"Item",null,null,null,"unit","EUR/unit","Price EUR"]
[null,"Basic price","Straight rail",{"$f":"IF(OR('Order form'!Q45=\"Platform + rail (standard)\",'Order form'!Q45=\"Platform only\"),1,0)","v":1},null,null,"pcs",{"$f":"'[1]Price list'!$C8","v":0},{"$f":"D8*H8","v":0}]
[null,null,"Non-straight rail (with curves or bends)",{"$f":"IF(OR('Order form'!Q46=\"Platform + rail (standard)\",'Order form'!Q46=\"Platform only\"),1,0)","v":0},null,null,"pcs",{"$f":"'[1]Price list'!$C9","v":0},{"$f":"D9*H9","v":0}]
[null,null,null,null,null,null,null,{"$f":"'[1]Price list'!$C10","v":0}]
[null,"Drive for F","1.1 kW compact drive including controls",{"$f":"IF('Order form'!Q41=\"1.1 kW compact drive including controls (indoor standard)\",IF('Order form'!Q45=\"rail only\",0,1),0)","v":1},null,null,"pcs",{"$f":"'[1]Price list'!$C11","v":0},{"$f":"H11*D11","v":0}]
[null,null,"1.1kW compact drive with controls in extra box",{"$f":"IF('Order form'!Q41=\"1.1kW compact drive with controls in extra box (outdoor standard)\",IF('Order form'!Q45=\"rail only\",0,1),0)","v":0},null,null,"pcs",{"$f":"'[1]Price list'!$C12","v":0},0]
[null,null,"1.1kW compact drive in big box",{"$f":"IF('Order form'!Q41=\"1.1kW compact drive in big box\",IF('Order form'!Q45=\"rail only\",0,1),0)","v":0},null,null,"pcs",{"$f":"'[1]Price list'!$C13","v":0},0]
[null,null,"1.5kW old standard drive",{"$f":"IF('Order form'!Q41=\"1.5kW old standard drive\",IF('Order form'!Q45=\"rail only\",0,1),0)","v":0},null,null,"pcs",{"$f":"'[1]Price list'!$C14","v":0},0]
[null,null,"2.2 kW (with big box)",{"$f":"IF('Order form'!Q41=\"2.2 kW (with big box)\",IF('Order form'!Q45=\"rail only\",0,1),0)","v":0},null,null,"pcs",{"$f":"'[1]Price list'!$C15","v":0},0]
[null,null,"Drive box",{"$f":"IF('Order form'!Q42=\"yes\",IF('Order form'!Q45=\"rail only\",0,1),0)","v":0},null,null,"pcs",{"$f":"'[1]Price list'!$C16","v":0},0]
[null,"UPS battery backup","E-Sentinel 6; 3000VA (up to 0,75kW; 1x230V)",{"$f":"IF('Order form'!Q40=\"YES\",1,0)","v":0},null,null,"pcs",{"$f":"'[1]Price list'!$C17","v":0}]
[null,"Rail","Rail additional to the 3m in basic price",{"$f":"IF('Order form'!Q25>3,'Order form'!Q25-3,0)","v":0},null,null,"m",{"$f":"'[1]Price list'!$C18","v":0},{"$f":"H18*D18","v":0}]
[null,null,"Bends in vertical section",{"$f":"'Order form'!Q34","v":0},null,null,"pcs",{"$f":"'[1]Price list'!$C19","v":0},0]
[null,null,"Basic price - Horizontal section - direct (angle of a rail < 20°)",{"$f":"IF('Order form'!Q32=\"straight\",1,0)","v":0},null,null,"pcs",{"$f":"'[1]Price list'!$C20","v":0},0]
[null,null,"Basic price - Horizontal section - with curve (angle of a rail < 20°)",{"$f":"IF('Order form'!Q32=\"with curve\",1,0)","v":0},null,null,"pcs",{"$f":"'[1]Price list'!$C21","v":0},0]
[null,null,"The length of horizontal section",{"$f":"'Order form'!Q33","v":0},null,null,"m",{"$f":"'[1]Price list'!$C22","v":0},0]
[null,null,"Safety pipe - straight rail",{"$f":"IF(AND('Order form'!Q24=\"straight rail\",'Order form'!Q73=\"yes\"),'Order form'!Q25,0)","v":0},null,null,"m",{"$f":"'[1]Price list'!$C23","v":0},0]
[null,null,"Safety pipe - non-straight rail",{"$f":"IF(AND('Order form'!Q24=\"non-straight rail\",'Order form'!Q73=\"yes\"),'Order form'!Q25,0)","v":0},null,null,"m",{"$f":"'[1]Price list'!$C24","v":0},0]
[null,null,"Cable pipe - straight rail",0,null,null,"m",{"$f":"'[1]Price list'!$C25","v":0},0]
[null,null,"Cable pipe - non-straight rail ",0,null,null,"m",{"$f":"'[1]Price list'!$C26","v":0},0]
[null,null,"Color treated pillar (each 0.6m)",{"$f":"IF('Order form'!Q96=\"On the pillars only\",'Order form'!Q25/0.6+1,0)","v":6},null,null,"pcs",{"$f":"'[1]Price list'!$C27","v":0},{"$f":"H27*D27","v":0}]
[null,null,"Extra pillars for controls",{"$f":"IF('Order form'!Q58=\"pillar-mounted\",'Order form'!Q57,0)","v":0},null,null,"pcs",{"$f":"'[1]Price list'!$C28","v":0},{"$f":"H28*D28","v":0}]
[null,null,"Adjustable slots on pillars",{"$f":"IF('Order form'!Q98=\"yes\",D27,0)","v":6},null,null,"pcs",{"$f":"'[1]Price list'!$C29","v":0},{"$f":"H29*D29","v":0}]
[null,null,"Additional stop",{"$f":"IF('Order form'!Q35=\"0\",0,'Order form'!Q35)","v":0},null,null,"pcs",{"$f":"'[1]Price list'!$C30","v":0},0]
[null,null,"Reinforced upper rail pipe (load > 300 kg or distance btw. pillars > 0.6m)",{"$f":"IF(OR('Order form'!Q47=\"300 kg\",'Order form'!Q75=\"yes\",'Order form'!Q99=\"yes\"),'Order form'!Q25,0)","v":0},null,null,"m",{"$f":"'[1]Price list'!$C31","v":0},0]
[null,"Curves","90° curve",{"$f":"'Order form'!Q28","v":0},null,null,"pcs",{"$f":"'[1]Price list'!$C32","v":0},0]
[null,null,"180° curve",{"$f":"'Order form'!Q29","v":0},null,null,"pcs",{"$f":"'[1]Price list'!$C33","v":0},0]
[null,null,"Special curve (nonstandard radius; each 90° or 3 m)",{"$f":"'Order form'!Q30","v":0},null,null,"pcs",{"$f":"'[1]Price list'!$C34","v":0},0]
[null,null,"Negative curve (each 90° or 3 m)",{"$f":"'Order form'!Q31","v":0},null,null,"pcs",{"$f":"'[1]Price list'!$C35","v":0}]
[null,"Platform","Automatic folding",{"$f":"IF('Order form'!Q49=\"automatic (standard)\",1,0)","v":0},null,null,"pcs",{"$f":"'[1]Price list'!$C36","v":0},0]
[null,null,"Non standard platform dimensions",{"$f":"IF('Order form'!Q48=\"special\",1,0)","v":0},null,null,"pcs",{"$f":"'[1]Price list'!$C37","v":0},0]
[null,null,"Platform with front loading ramp",{"$f":"IF(OR('Order form'!Q50=\"Upper and lower ramp + front ramp (90° side access)\",'Order form'!Q50=\"Upper and front ramp (without lower)\"),1,0)","v":0},null,null,"pcs",{"$f":"'[1]Price list'!$C38","v":0},{"$f":"H38*D38","v":0}]
[null,null,"Front folding ramp 85o",{"$f":"IF('Order form'!Q51=\"yes\",1,0)","v":0},null,null,"pcs",{"$f":"'[1]Price list'!$C39","v":0},{"$f":"H39*D39","v":0}]
[null,null,"Platform without lower loading ramp",{"$f":"IF('Order form'!Q50=\"Upper and front ramp (without lower)\",1,0)","v":0},null,null,"pcs",{"$f":"'[1]Price list'!$C40","v":0},{"$f":"H40*D40","v":0}]
[null,null,"Folding sideboard",{"$f":"IF('Order form'!Q54=\"yes\",1,0)","v":0},null,null,"pcs",{"$f":"'[1]Price list'!$C41","v":0},{"$f":"H41*D41","v":0}]
[null,null,"The length of loading ramps 300mm",{"$f":"IF('Order form'!W52=\"300mm (special)\",1,(IF('Order form'!AE52=\"300mm (special)\",1,0)))","v":0},null,null,"pcs",{"$f":"'[1]Price list'!$C42","v":0},0]
[null,null,"Plastic cover",{"$f":"IF('Order form'!Q69=\"yes\",1,0)","v":0},null,null,"pcs",{"$f":"'[1]Price list'!$C43","v":0},0]
[null,null,"Padlock against unfolding of the platform by unauthorized user ",{"$f":"IF('Order form'!Q71=\"yes\",1,0)","v":0},null,null,"pcs",{"$f":"'[1]Price list'!$C44","v":0},0]
[null,null,"Folding upholstery seat",{"$f":"IF('Order form'!Q46=\"With upholstery folding seat\",1,0)","v":0},null,null,"pcs",{"$f":"'[1]Price list'!$C45","v":0},0]
[null,null,"Folding steel seat",{"$f":"IF('Order form'!Q46=\"With steel folding seat\",1,0)","v":0},null,null,"pcs",{"$f":"'[1]Price list'!$C46","v":0},0]
[null,"Rail fillings  ","Glass fillings between pillars",{"$f":"IF('Order form'!Q72=\"Connex glass\",'Order form'!AA72,0)","v":0},null,null,"pcs",{"$f":"'[1]Price list'!$C47","v":0},0]
[null,null,"Perforated metal plates between pillars",{"$f":"IF('Order form'!Q72=\"perforated metal plate\",'Order form'!AA72,0)","v":0},null,null,"pcs",{"$f":"'[1]Price list'!$C48","v":0},0]
[null,null,"Wooden fillings",{"$f":"IF('Order form'!Q72=\"wood\",'Order form'!AA72,0)","v":0},null,null,"pcs",{"$f":"'[1]Price list'!$C49","v":0},0]
[null,null,"Steel rods between pillars",{"$f":"IF('Order form'!Q72=\"steel rods\",'Order form'!AA72,0)","v":0},null,null,"pcs",{"$f":"'[1]Price list'!$C50","v":0},{"$f":"H50*D50","v":0}]
[null,null,"Stainless steel fillings",{"$f":"IF('Order form'!Q72=\"Stainless steel rods\",'Order form'!AA72,0)","v":0},null,null,"pcs",{"$f":"'[1]Price list'!$C51","v":0},0]
[null,"Controls","Radio controls with large push buttons (in compliance with EN81-40)",{"$f":"IF('Order form'!Q56=\"Big push buttons (special)\",'Order form'!Q58,0)","v":0},null,null,"pcs",{"$f":"'[1]Price list'!$C52","v":0},{"$f":"H52*D52","v":0}]
[null,null,"Extra control (2 pcs included in basic price)",{"$f":"'Order form'!Q58-2","v":0},null,null,"pcs",{"$f":"'[1]Price list'!$C53","v":0},{"$f":"H53*D53","v":0}]
[null,null,"Removing key in ON position",{"$f":"IF('Order form'!Q60=\"yes\",1,0)","v":0},null,null,"pcs",{"$f":"'[1]Price list'!$C54","v":0},{"$f":"H54*D54","v":0}]
[null,null,"EURO key",{"$f":"IF('Order form'!Q57=\"EURO key\",'Order form'!Q58,0)","v":0},null,null,"pcs",{"$f":"'[1]Price list'!$C55","v":0},{"$f":"H55*D55","v":0}]
[null,null,"Dual controls",{"$f":"IF(OR('Order form'!Q55=\"dual controls with joystick on the platform\",'Order form'!Q55=\"dual controls with push buttons on the platform\"),1,0)","v":0},null,null,"pcs",{"$f":"'[1]Price list'!$C56","v":0},{"$f":"H56*D56","v":0}]
[null,"Surface treatment","Non-standard RAL color treatment",{"$f":"IF(OR('Order form'!AD90=\"RAL:\",'Order form'!AD91=\"RAL:\",'Order form'!AD92=\"RAL:\",'Order form'!AD93=\"RAL:\"),1,0)","v":0},null,null,"pcs",{"$f":"'[1]Price list'!$C57","v":0},0]
[null,null,"Fire zinc rail (outdoor installation)",{"$f":"IF(OR('Order form'!Q92=\"zinc + special RAL\",'Order form'!Q92=\"zinc (outdoor standard)\"),D18+3,0)","v":0},null,null,"m",{"$f":"'[1]Price list'!$C58","v":0},0]
[null,null,"Fire zinc pillars (outdoor installation)",{"$f":"IF(OR('Order form'!Q93=\"zinc + special RAL\",'Order form'!Q93=\"zinc + RAL 7035 (outdoor standard)\",'Order form'!Q93=\"zinc (outdoor standard)\"),D27,0)","v":0},null,null,"pcs",{"$f":"'[1]Price list'!$C59","v":0},0]
[null,null,"Zinc spraying of platform (outdoor installation)",{"$f":"IF(OR('Order form'!Q90=\"zinc + special RAL\",'Order form'!Q90=\"zinc + RAL 7035 (outdoor standard)\",'Order form'!Q90=\"zinc + RAL 9007 (outdoor standard)\"),1,0)","v":0},null,null,"pcs",{"$f":"'[1]Price list'!$C60","v":0},0]
[null,null,"Zinc spraying of drive (outdoor installation)",{"$f":"IF(OR('Order form'!Q91=\"zinc + special RAL\",'Order form'!Q91=\"zinc + RAL 7035 (outdoor standard)\",'Order form'!Q91=\"zinc + RAL 9007 (outdoor standard)\"),1,0)","v":0},null,null,"pcs",{"$f":"'[1]Price list'!$C61","v":0}]
[null,null,"Stainless steel Platform and Carriage",{"$f":"IF(OR('Order form'!Q90=\"stainless 304 + special RAL\",'Order form'!Q90=\"stainless 316 + special RAL\"),1,0)","v":0},null,null,"pcs",{"$f":"'[1]Price list'!$C62","v":0},0]
[null,null,"Stainless steel Rail, Brackets and Distances 304",{"$f":"IF('Order form'!Q92=\"stainless 304\",D18+3,0)","v":0},null,null,"m",{"$f":"'[1]Price list'!$C63","v":0},0]
[null,null,"Stainless steel Rail, Brackets and Distances 316",{"$f":"IF('Order form'!Q92=\"stainless 316\",D18+3,0)","v":0},null,null,"m",{"$f":"'[1]Price list'!$C64","v":0},0]
[null,null,"Stainless steel Pillars 304",{"$f":"IF('Order form'!Q93=\"stainless 304\",D27,0)","v":0},null,null,"pcs",{"$f":"'[1]Price list'!$C65","v":0},0]
[null,null,"Stainless steel Pillars 316",{"$f":"IF('Order form'!Q93=\"stainless 316\",D27,0)","v":0},null,null,"pcs",{"$f":"'[1]Price list'!$C66","v":0},0]
[null,"Safety features in compliance with       EN 81-40","Safety bottom",{"$f":"IF('Order form'!Q63=\"YES\",1,0)","v":1},null,null,"pcs",{"$f":"'[1]Price list'!$C67","v":0},0]
[null,null,"Lateral safety pads",{"$f":"IF('Order form'!Q64=\"YES\",1,0)","v":1},null,null,"pcs",{"$f":"'[1]Price list'!$C68","v":0},0]
[null,null,"Overload signals",{"$f":"IF('Order form'!Q65=\"YES\",1,0)","v":1},null,null,"pcs",{"$f":"'[1]Price list'!$C69","v":0},{"$f":"H69*D69","v":0}]
[null,null,"Visual signals (bespoke solution)",{"$f":"IF('Order form'!Q66=\"YES\",1,0)","v":0},null,null,"pcs",{"$f":"'[1]Price list'!$C70","v":0},{"$f":"D70*H70","v":0}]
[null,"Additional costs","Warranty (always fill out)",{"$f":"IF('Order form'!Q79=\"other\",'Order form'!AB79,'Order form'!Q79)","v":24},null,null,"months",{"$f":"'[1]Price list'!$C71","v":0},{"$f":"H71*D71","v":0}]
[null,null,null,null,null,null,null,{"$f":"'[1]Price list'!$C72","v":0}]
[null,null,null,null,null,null,null,{"$f":"'[1]Price list'!$C73","v":0}]
[null,null,null,null,null,null,null,{"$f":"'[1]Price list'!$C74","v":0}]
[null,null,null,null,null,null,null,{"$f":"'[1]Price list'!$C75","v":0}]
[null,null,"Rope tensioner",{"$f":"IF('Order form'!Q81=\"yes\",1,0)","v":0},null,null,"pcs",{"$f":"'[1]Price list'!$C76","v":0}]
[null,null,"Transport box",{"$f":"IF('Order form'!Q82=\"none\",0,1)","v":1},null,null,"pcs",{"$f":"'[1]Price list'!$C77","v":0},{"$f":"H77*D77","v":0}]
[null,null,"Drawing time urgency",{"$f":"IF('Order form'!Q87=\"not specified\",0,(IF('Order form'!Q87>11,\"1\",(IF('Order form'!Q87>8,\"2\",(IF('Order form'!Q87>5,\"3\",4)))))))","v":4},null,null,"pcs",{"$f":"'[1]Price list'!$C78","v":0},{"$f":"H78*D78","v":0}]
[]
[]
[250,"Total price VAT excl.:",null,null,null,null,null,null,{"$f":"SUM(I8:I80)","v":0}]
[260,"Discount:",null,null,null,null,null,0,{"$f":"H82*I81","v":0}]
[270,"Final price, VAT excl.:",null,null,null,null,null,null,{"$f":"I81-I82","v":0}]
[null,"Prepared by:",{"$f":"'Order form'!Z113","v":0},null,null,null,null,{"$f":"'Order form'!AE2","v":"2021-04-16"}]

{"sheet":"Languages","index":2,"n_rows":271,"n_cols":6,"rows_kept":271,"cut":false,"hidden":true,"merged":[]}
["Cell","Type","English","Deutsch","Français","Español"]
[{"$f":"CELL(\"address\",'Order form'!M2)","v":"'[OMEGA-F_Order form_2021.xlsm]Order form'!$M$2"},"Label","OMEGA STAIRLIFT","OMEGA PLATTFORMLIFT","OMEGA MONTE-ESCALIER","OMEGA SALVAESCALERAS"]
[{"$f":"CELL(\"address\",'Order form'!M3)","v":"'[OMEGA-F_Order form_2021.xlsm]Order form'!$M$3"},"Label","ORDER FORM","BESTELLFORMULAR","BON DE COMMANDE","FORMULARIO DE PEDIDO"]
[{"$f":"CELL(\"address\",'Order form'!AC2)","v":"'[OMEGA-F_Order form_2021.xlsm]Order form'!$AC$2"},"Label","Date","Datum","Date","Fecha"]
[{"$f":"CELL(\"address\",'Order form'!B2)","v":"'[OMEGA-F_Order form_2021.xlsm]Order form'!$B$2"},"Label","Language","Sprache","La langue","Idioma"]
[{"$f":"CELL(\"address\",'Order form'!AC3)","v":"'[OMEGA-F_Order form_2021.xlsm]Order form'!$AC$3"},"Label","Version","Version","Version","Versión"]
[{"$f":"CELL(\"address\",'Order form'!O5)","v":"'[OMEGA-F_Order form_2021.xlsm]Order form'!$O$5"},"Label","Distributor: (always fill out)","Händler: (immer ausfüllen)","Distributeur:","Distribuidor: (siempre rellena)"]
[{"$f":"CELL(\"address\",'Order form'!AA5)","v":"'[OMEGA-F_Order form_2021.xlsm]Order form'!$AA$5"},"Label","Delivery address: (always fill out)","Lieferadresse: (immer ausfüllen)","Adresse de livraison:","Dirección de entrega: (siempre rellena)"]
[{"$f":"CELL(\"address\",'Order form'!O6)","v":"'[OMEGA-F_Order form_2021.xlsm]Order form'!$O$6"},"Label","Company","Firma","Société","Empresa"]
[{"$f":"CELL(\"address\",'Order form'!AA6)","v":"'[OMEGA-F_Order form_2021.xlsm]Order form'!$AA$6"},"Label","Company","Firma","Société","Empresa"]
[{"$f":"CELL(\"address\",'Order form'!O8)","v":"'[OMEGA-F_Order form_2021.xlsm]Order form'!$O$8"},"Label","Address","Anschrift","Adresse","Dirección"]
[{"$f":"CELL(\"address\",'Order form'!AA8)","v":"'[OMEGA-F_Order form_2021.xlsm]Order form'!$AA$8"},"Label","Address","Anschrift","Adresse","Dirección"]
[{"$f":"CELL(\"address\",'Order form'!O9)","v":"'[OMEGA-F_Order form_2021.xlsm]Order form'!$O$9"},"Label","Postcode","PLZ","Code postal","Código postal"]
[{"$f":"CELL(\"address\",'Order form'!AA9)","v":"'[OMEGA-F_Order form_2021.xlsm]Order form'!$AA$9"},"Label","Postcode","PLZ","Code postal","Código postal"]
[{"$f":"CELL(\"address\",'Order form'!O10)","v":"'[OMEGA-F_Order form_2021.xlsm]Order form'!$O$10"},"Label","City","Stadt","Ville","Ciudad"]
[{"$f":"CELL(\"address\",'Order form'!AA10)","v":"'[OMEGA-F_Order form_2021.xlsm]Order form'!$AA$10"},"Label","City","Stadt","Ville","Ciudad"]
[{"$f":"CELL(\"address\",'Order form'!O11)","v":"'[OMEGA-F_Order form_2021.xlsm]Order form'!$O$11"},"Label","Country","Land","Le pays","País"]
[{"$f":"CELL(\"address\",'Order form'!AA11)","v":"'[OMEGA-F_Order form_2021.xlsm]Order form'!$AA$11"},"Label","Country","Land","Le pays","País"]
[{"$f":"CELL(\"address\",'Order form'!O12)","v":"'[OMEGA-F_Order form_2021.xlsm]Order form'!$O$12"},"Label","Telephone","Telefon","Téléphone","Teléfono"]
[{"$f":"CELL(\"address\",'Order form'!AA12)","v":"'[OMEGA-F_Order form_2021.xlsm]Order form'!$AA$12"},"Label","Telephone","Telefon","Téléphone","Teléfono"]
[{"$f":"CELL(\"address\",'Order form'!B22)","v":"'[OMEGA-F_Order form_2021.xlsm]Order form'!$B$22"},"Label","Installation location","Installationsort","Lieu d'installation","Lugar de instalación"]
[{"$f":"CELL(\"address\",'Order form'!B23)","v":"'[OMEGA-F_Order form_2021.xlsm]Order form'!$B$23"},"Label","Installation side","Montageseite","Côté d'installation","Lado de instalación"]
[{"$f":"CELL(\"address\",'Order form'!B16)","v":"'[OMEGA-F_Order form_2021.xlsm]Order form'!$B$16"},"Label","Pick up address for lifts: Spedition Englmayer, Wiesenstrasse 71, 4600 Wels, Austria","ABHOLADRESSE: Spedition Englmayer, Wiesenstrasse 71, 4600 Wels, Austria","Adresse de ramassage: Spedition Englmayer, Wiesenstrasse 71, 4600 Wels, Austria","Dirección de recogida de los equipos: Spedition Englmayer, Wiesenstrasse 71, 4600 Wels, Austria"]
[{"$f":"CELL(\"address\",'Order form'!B18)","v":"'[OMEGA-F_Order form_2021.xlsm]Order form'!$B$18"},"Label","Production no.","Produktionsnr.","Num. de production","Producción no."]
[{"$f":"CELL(\"address\",'Order form'!H18)","v":"'[OMEGA-F_Order form_2021.xlsm]Order form'!$H$18"},"Label","Order reference name (or number)","Auftragsreferenz (Name oder Nummer)","Nom de référence de la commande (ou numéro)","Nombre (o número) de referencia del pedido"]
[{"$f":"CELL(\"address\",'Order form'!B21)","v":"'[OMEGA-F_Order form_2021.xlsm]Order form'!$B$21"},"Label","Rail specification","Schienenspezifikation","Spécification de rail","Especificación de la guia"]
[{"$f":"CELL(\"address\",'Order form'!B24)","v":"'[OMEGA-F_Order form_2021.xlsm]Order form'!$B$24"},"Label","Rail type","Schienenart","Type de rail","Tipo de guía"]
[{"$f":"CELL(\"address\",'Order form'!B25)","v":"'[OMEGA-F_Order form_2021.xlsm]Order form'!$B$25"},"Label","Rail length in meters rounded","Schienenlänge (ungefähr in m)","Longueur du rail en mètres arrondis","Longitud de la guia en metros redondeados"]
[{"$f":"CELL(\"address\",'Order form'!B26)","v":"'[OMEGA-F_Order form_2021.xlsm]Order form'!$B$26"},"Label","Lower stop","Untere Haltestelle","Arrêt inférieur","Parada inferior"]
[{"$f":"CELL(\"address\",'Order form'!B27)","v":"'[OMEGA-F_Order form_2021.xlsm]Order form'!$B$27"},"Label","Upper stop","Obere Haltestelle","Arrêt supérieur","Parada superior"]
[{"$f":"CELL(\"address\",'Order form'!B28)","v":"'[OMEGA-F_Order form_2021.xlsm]Order form'!$B$28"},"Label","Number of 90° curves","Anzahl der 90° Kurven","Nombre de courbes à 90°","Número de curvas de 90"]
[{"$f":"CELL(\"address\",'Order form'!B29)","v":"'[OMEGA-F_Order form_2021.xlsm]Order form'!$B$29"},"Label","Number of 180° curves","Anzahl der 180° Kurven","Nombre de courbes à 180°","Número de curvas de 180"]
[{"$f":"CELL(\"address\",'Order form'!B30)","v":"'[OMEGA-F_Order form_2021.xlsm]Order form'!$B$30"},"Label","Number of special curves","Anzahl der Spezialkurven","Nombre de courbes spéciales","Número de curvas especiales"]
[{"$f":"CELL(\"address\",'Order form'!B31)","v":"'[OMEGA-F_Order form_2021.xlsm]Order form'!$B$31"},"Label","Number of negative curves","Anzahl der Negativkurven","Nombre de courbes négatives","Número de curvas negativas"]
[{"$f":"CELL(\"address\",'Order form'!B32)","v":"'[OMEGA-F_Order form_2021.xlsm]Order form'!$B$32"},"Label","Horizontal drive (inclination <20°)","Horizontalfahrt (Neigung <20°)","Parcours horizontal (inclination <20°)","Guia  horizontal (inclinación <20°)"]
[{"$f":"CELL(\"address\",'Order form'!B33)","v":"'[OMEGA-F_Order form_2021.xlsm]Order form'!$B$33"},"Label","Length of horizontal rail in meters","Länge Horizontalfahrt in Meter","Longeur parcours horizontal en mètres","Longitud de la guia horizontal en metros"]
[{"$f":"CELL(\"address\",'Order form'!B34)","v":"'[OMEGA-F_Order form_2021.xlsm]Order form'!$B$34"},"Label","Number of vertical bends","Anzahl vertikale Knicke","Nombre de courbures verticales","Número de cambios de pendientes"]
[{"$f":"CELL(\"address\",'Order form'!B35)","v":"'[OMEGA-F_Order form_2021.xlsm]Order form'!$B$35"},"Label","Number of intermediate stops","Anzahl der Zwischenhaltestellen","Nombre d'arrêts intermédiaires","Número de paradas intermedias"]
[{"$f":"CELL(\"address\",'Order form'!B37)","v":"'[OMEGA-F_Order form_2021.xlsm]Order form'!$B$37"},"Label","Motor Specification","Motorspezifikationen","Spécification de motor","Especificación del motor"]
[{"$f":"CELL(\"address\",'Order form'!B38)","v":"'[OMEGA-F_Order form_2021.xlsm]Order form'!$B$38"},"Label","Power supply","Spannungsversorgung","Alimentation électrique","Suministro de energía"]
[{"$f":"CELL(\"address\",'Order form'!B39)","v":"'[OMEGA-F_Order form_2021.xlsm]Order form'!$B$39"},"Label","Frequent use","Häufige Nutzung","Utilisation fréquente","Uso frecuente"]
[{"$f":"CELL(\"address\",'Order form'!B40)","v":"'[OMEGA-F_Order form_2021.xlsm]Order form'!$B$40"},"Label","UPS - battery backup (max 1,1kW)","USV - Batterie-Backup (max. 1,1kW)","UPS - batterie de secours (max 1,1kW)","UPS - batería de respaldo (máx. 1,1kW)"]
[{"$f":"CELL(\"address\",'Order form'!B41)","v":"'[OMEGA-F_Order form_2021.xlsm]Order form'!$B$41"},"Label","Type of drive","Antriebsart","Type de motor","Tipo de motor"]
[{"$f":"CELL(\"address\",'Order form'!B42)","v":"'[OMEGA-F_Order form_2021.xlsm]Order form'!$B$42"},"Label","Big drive box","Große Antriebsbox","Grande boîte d'entraînement","Caja de motor grande"]
[{"$f":"CELL(\"address\",'Order form'!AB26)","v":"'[OMEGA-F_Order form_2021.xlsm]Order form'!$AB$26"},"Formula","=IF(Q25=\"straight start with bottom overrun\",\"mm from first step to end of platform\", \"\")","=IF(q25=\"Gerade mit horizontalem Auslauf\",\"mm von erster Stufe bis Ende Plattform\", \"\")","=IF(q25=\"Début droit avec dépassement du bas\",\"mm du premier pas à la fin de la plateforme\", \"\")","=IF(Q25=\"Recta con distancia al primer escalon\",\"mm desde el primer paso hasta el final de la silla\",\"\")"]
[{"$f":"CELL(\"address\",'Order form'!AB27)","v":"'[OMEGA-F_Order form_2021.xlsm]Order form'!$AB$27"},"Formula","=IF(q26=\"straight top overrun\",\"mm from last step to end of platform\", \"\")","=IF(q26=\"Gerader Überlauf\",\"mm von letzter Stufe bis Ende Plattform\", \"\")","=IF(q26=\"Débordement droit\",\"mm de la dernière étape à la fin de la plateforme\", \"\")","=IF(Q26=\"Recta sobre el rellano superior\",\"mm desde el último paso hasta el final de la silla\",\"\")"]
[{"$f":"CELL(\"address\",'Order form'!Q22)","v":"'[OMEGA-F_Order form_2021.xlsm]Order form'!$Q$22"},"Dropdown","Indoor","Innen","Intérieur","Interior"]
[{"$f":"CELL(\"address\",'Order form'!Q22)","v":"'[OMEGA-F_Order form_2021.xlsm]Order form'!$Q$22"},"Dropdown","Outdoor","Im Außenbereich","De plein air","Al aire libre"]
[{"$f":"CELL(\"address\",'Order form'!Q23)","v":"'[OMEGA-F_Order form_2021.xlsm]Order form'!$Q$23"},"Dropdown","Left","Links","La gauche","Izquierda"]
[{"$f":"CELL(\"address\",'Order form'!Q23)","v":"'[OMEGA-F_Order form_2021.xlsm]Order form'!$Q$23"},"Dropdown","Right","Rechts","Droite","Derecha"]
[{"$f":"CELL(\"address\",'Order form'!Q24)","v":"'[OMEGA-F_Order form_2021.xlsm]Order form'!$Q$24"},"Dropdown","Straight rail","Gerade Schiene","Rail droit","Guía recta"]
[{"$f":"CELL(\"address\",'Order form'!Q24)","v":"'[OMEGA-F_Order form_2021.xlsm]Order form'!$Q$24"},"Dropdown","Rail with curves","Schiene mit Kurven","Rail avec courbes","Guía con curvas"]
[{"$f":"CELL(\"address\",'Order form'!Q26)","v":"'[OMEGA-F_Order form_2021.xlsm]Order form'!$Q$26"},"Dropdown","Straight","Gerade","Tout droit","Recto"]
[{"$f":"CELL(\"address\",'Order form'!Q26)","v":"'[OMEGA-F_Order form_2021.xlsm]Order form'!$Q$26"},"Dropdown","Straight with steep start","Gerade mit Steilstart","Droit avec début raide","Recto con comienzo empinado"]
[{"$f":"CELL(\"address\",'Order form'!Q26)","v":"'[OMEGA-F_Order form_2021.xlsm]Order form'!$Q$26"},"Dropdown","Straight start with bottom overrun","Gerade mit horizontalem Auslauf","Début droit avec dépassement du bas","Recta con distancia al primer escalon"]
[{"$f":"CELL(\"address\",'Order form'!Q26)","v":"'[OMEGA-F_Order form_2021.xlsm]Order form'!$Q$26"},"Dropdown","90°","90°","90°","90°"]
[{"$f":"CELL(\"address\",'Order form'!Q26)","v":"'[OMEGA-F_Order form_2021.xlsm]Order form'!$Q$26"},"Dropdown","180°","180°","180°","180°"]
[{"$f":"CELL(\"address\",'Order form'!Q26)","v":"'[OMEGA-F_Order form_2021.xlsm]Order form'!$Q$26"},"Dropdown","Special curve","Spezialkurve","Courbe spéciale","Curva especial"]
[{"$f":"CELL(\"address\",'Order form'!Q27)","v":"'[OMEGA-F_Order form_2021.xlsm]Order form'!$Q$27"},"Dropdown","Straight at last step","Gerade an letzter Stufe","Droit à la dernière étape","Directamente en el último paso"]
[{"$f":"CELL(\"address\",'Order form'!Q27)","v":"'[OMEGA-F_Order form_2021.xlsm]Order form'!$Q$27"},"Dropdown","Straight top overrun","Gerader Überlauf","Débordement droit","Recta sobre el rellano superior"]
[{"$f":"CELL(\"address\",'Order form'!Q27)","v":"'[OMEGA-F_Order form_2021.xlsm]Order form'!$Q$27"},"Dropdown","90° on top landing","90° auf oberem Podest","Atterrissage supérieur à 90°","90 ° en el aterrizaje superior"]
[{"$f":"CELL(\"address\",'Order form'!Q27)","v":"'[OMEGA-F_Order form_2021.xlsm]Order form'!$Q$27"},"Dropdown","180° on top landing","180° auf oberem Podest","Atterrissage supérieur à 180°","180 ° en el aterrizaje superior"]
[{"$f":"CELL(\"address\",'Order form'!Q27)","v":"'[OMEGA-F_Order form_2021.xlsm]Order form'!$Q$27"},"Dropdown","Special curve on top landing","Spezialkurve auf oberem Podest","Courbe spéciale sur le palier supérieur","Curva especial en el aterrizaje superior."]
[{"$f":"CELL(\"address\",'Order form'!Q32)","v":"'[OMEGA-F_Order form_2021.xlsm]Order form'!$Q$32"},"Dropdown","No","Nein","Non","No"]
[{"$f":"CELL(\"address\",'Order form'!Q32)","v":"'[OMEGA-F_Order form_2021.xlsm]Order form'!$Q$32"},"Dropdown","Straight","Gerade","Droit","Recto"]
[{"$f":"CELL(\"address\",'Order form'!Q32)","v":"'[OMEGA-F_Order form_2021.xlsm]Order form'!$Q$32"},"Dropdown","With curve","Mit Kurve","Avec courbe","Con curva"]
[{"$f":"CELL(\"address\",'Order form'!Q38)","v":"'[OMEGA-F_Order form_2021.xlsm]Order form'!$Q$38"},"Dropdown","1 x 230V(standard)","1 x 230V(standard)","1 x 230V(standard)","1 x 230V(standard)"]
[{"$f":"CELL(\"address\",'Order form'!Q38)","v":"'[OMEGA-F_Order form_2021.xlsm]Order form'!$Q$38"},"Dropdown","3 x 400V","3 x 400V","3 x 400V","3 x 400V"]
[{"$f":"CELL(\"address\",'Order form'!Q39)","v":"'[OMEGA-F_Order form_2021.xlsm]Order form'!$Q$39"},"Dropdown","No","Nein","Non","No"]
[{"$f":"CELL(\"address\",'Order form'!Q39)","v":"'[OMEGA-F_Order form_2021.xlsm]Order form'!$Q$39"},"Dropdown","Yes","Ja","Oui","Sí"]
[{"$f":"CELL(\"address\",'Order form'!Q40)","v":"'[OMEGA-F_Order form_2021.xlsm]Order form'!$Q$40"},"Dropdown","No","Nein","Non","No"]
[{"$f":"CELL(\"address\",'Order form'!Q40)","v":"'[OMEGA-F_Order form_2021.xlsm]Order form'!$Q$40"},"Dropdown","Yes","Ja","Oui","Sí"]
[{"$f":"CELL(\"address\",'Order form'!Q41)","v":"'[OMEGA-F_Order form_2021.xlsm]Order form'!$Q$41"},"Dropdown","1.1 kW compact drive including controls (indoor standard)","1.1 kW Kompaktantrieb inklusive Steuerung (Standard Innenanlage)","Entraînement compact de 1.1 kW avec commandes (standard intérieur)","Accionamiento compacto de 1.1 kW incluidos los controles (interior)"]
[{"$f":"CELL(\"address\",'Order form'!Q41)","v":"'[OMEGA-F_Order form_2021.xlsm]Order form'!$Q$41"},"Dropdown","1.1kW compact drive with controls in extra box (outdoor standard)","1.1kW Kompaktantrieb mit Steuerung in extra Box (Standard Außenanlage)","Entraînement compact de 1.1 kW avec électronique séparée (standard extérieur)","Accionamiento compacto de 1.1 kW con mandos en caja adicional (exterior)"]
[{"$f":"CELL(\"address\",'Order form'!Q41)","v":"'[OMEGA-F_Order form_2021.xlsm]Order form'!$Q$41"},"Dropdown","1.1kW compact drive in big box","1.1kW Kompaktantrieb in großer Box","1.1kW moteur dans une grande boîte","Accionamiento de 1.1 kW en caja grande"]
[]
[{"$f":"CELL(\"address\",'Order form'!Q41)","v":"'[OMEGA-F_Order form_2021.xlsm]Order form'!$Q$41"},"Dropdown","2.2 kW (with big box)","2.2 kW (mit großer Box)","2.2 kW (avec grand boîtier)","2.2 kW (con caja grande)"]
[{"$f":"CELL(\"address\",'Order form'!B44)","v":"'[OMEGA-F_Order form_2021.xlsm]Order form'!$B$44"},"Label","General platform specifications","Plattformausführung","Données techniques","automóvil"]
[{"$f":"CELL(\"address\",'Order form'!B45)","v":"'[OMEGA-F_Order form_2021.xlsm]Order form'!$B$45"},"Label","Excecution","Ausführung","Exécution","Ejecución"]
[{"$f":"CELL(\"address\",'Order form'!B46)","v":"'[OMEGA-F_Order form_2021.xlsm]Order form'!$B$46"},"Label","Folding seat","Klappsitz","Siège rabattable","Asiento plegable"]
[{"$f":"CELL(\"address\",'Order form'!B47)","v":"'[OMEGA-F_Order form_2021.xlsm]Order form'!$B$47"},"Label","Loading capacity","Traglast","Charge max.","Capacidad de carga"]
[{"$f":"CELL(\"address\",'Order form'!B48)","v":"'[OMEGA-F_Order form_2021.xlsm]Order form'!$B$48"},"Label","Platform dimension","Plattformgröße","Dimensions plate-forme","Dimensión de la plataforma"]
[{"$f":"CELL(\"address\",'Order form'!B49)","v":"'[OMEGA-F_Order form_2021.xlsm]Order form'!$B$49"},"Label","Folding mechanism","Klappmechanismus","Ouverture/fermeture plate-forme","Mecanismo de plegado"]
[{"$f":"CELL(\"address\",'Order form'!B50)","v":"'[OMEGA-F_Order form_2021.xlsm]Order form'!$B$50"},"Label","Loading ramps","Auffahrrampen","Rampes d'accès","Rampas de carga"]
[{"$f":"CELL(\"address\",'Order form'!B51)","v":"'[OMEGA-F_Order form_2021.xlsm]Order form'!$B$51"},"Label","Special 90° side access ramp (folds 85°)","Spezielle 90° seitliche Auffahrrampe (klappt 85°)","Rampe d'accès latérale 85°","Rampa lateral plegable de 85 grados"]
[{"$f":"CELL(\"address\",'Order form'!B52)","v":"'[OMEGA-F_Order form_2021.xlsm]Order form'!$B$52"},"Label","Ramps length","Rampenlänge","Longueur des rampes","Longitud de las rampas"]
[{"$f":"CELL(\"address\",'Order form'!Q52)","v":"'[OMEGA-F_Order form_2021.xlsm]Order form'!$Q$52"},"Label","Upper ramp","Obere Rampe","Rampe superieure","Rampa superior"]
[{"$f":"CELL(\"address\",'Order form'!AB52)","v":"'[OMEGA-F_Order form_2021.xlsm]Order form'!$AB$52"},"Label","Lower ramp","Untere Rampe","Rampe inferieure","Rampa inferior"]
[{"$f":"CELL(\"address\",'Order form'!B53)","v":"'[OMEGA-F_Order form_2021.xlsm]Order form'!$B$53"},"Label","Ramps surface","Rampenoberfläche","Couleur des rampes","Superficie de las rampas"]
[{"$f":"CELL(\"address\",'Order form'!B54)","v":"'[OMEGA-F_Order form_2021.xlsm]Order form'!$B$54"},"Label","Folding sideboard","Klappbares Seitenboard","Panneau latéral pliant","Regleta lateral plegable"]
[{"$f":"CELL(\"address\",'Order form'!B55)","v":"'[OMEGA-F_Order form_2021.xlsm]Order form'!$B$55"},"Label","Platform control","Plattformbedienung","Commande sur plate-forme","Versión de control de plataforma"]
[{"$f":"CELL(\"address\",'Order form'!B56)","v":"'[OMEGA-F_Order form_2021.xlsm]Order form'!$B$56"},"Label","External landing controls (always radio)","Funk-Außensteuerungen","Stations de rappel à IR","Controles de aterrizaje externo (siempre por radio)"]
[{"$f":"CELL(\"address\",'Order form'!B57)","v":"'[OMEGA-F_Order form_2021.xlsm]Order form'!$B$57"},"Label","Type of key","Schlüssel","Clé","Tipo de clave"]
[{"$f":"CELL(\"address\",'Order form'!B58)","v":"'[OMEGA-F_Order form_2021.xlsm]Order form'!$B$58"},"Label","Total no. of external landing controls","Anzahl der Außensteuerungen","Numero des télécommandes","Número total de controles externos de aterrizaje"]
[{"$f":"CELL(\"address\",'Order form'!B59)","v":"'[OMEGA-F_Order form_2021.xlsm]Order form'!$B$59"},"Label","Position of the external landing controls","Position der Außensteuerungen","Position des télécommandes","Posición de los mandos de aterrizaje exterior"]
[{"$f":"CELL(\"address\",'Order form'!B60)","v":"'[OMEGA-F_Order form_2021.xlsm]Order form'!$B$60"},"Label","Removing key in ON position","Schlüssel abziehbar in EIN-Position","Clé amovible","Extracción de llave en posición ON"]
[{"$f":"CELL(\"address\",'Order form'!Q45)","v":"'[OMEGA-F_Order form_2021.xlsm]Order form'!$Q$45"},"Dropdown","Platform + rail (standard)","Kompletter Lift mit maßgefertigter Schiene","Plateforme + rail sur mesure (standard)","Plataforma + guia (estándar)"]
[{"$f":"CELL(\"address\",'Order form'!Q45)","v":"'[OMEGA-F_Order form_2021.xlsm]Order form'!$Q$45"},"Dropdown","Rail only","Nur Schiene","Rail seulement","Sólo guia"]
[{"$f":"CELL(\"address\",'Order form'!Q46)","v":"'[OMEGA-F_Order form_2021.xlsm]Order form'!$Q$46"},"Dropdown","Without folding seat","Ohne Klappsitz","Sans siège rabattable","Sin asiento abatible"]
[{"$f":"CELL(\"address\",'Order form'!Q46)","v":"'[OMEGA-F_Order form_2021.xlsm]Order form'!$Q$46"},"Dropdown","With upholstery folding seat","Klappsitz mit Polsterung","Siège pliant avec rembourrage","Con asiento abatible tapizado."]
[{"$f":"CELL(\"address\",'Order form'!Q46)","v":"'[OMEGA-F_Order form_2021.xlsm]Order form'!$Q$46"},"Dropdown","With steel folding seat","Klappsitz aus Stahl beschichtet","Siège rabattable en acier revêtu","Con asiento abatible de acero"]
[{"$f":"CELL(\"address\",'Order form'!Q47)","v":"'[OMEGA-F_Order form_2021.xlsm]Order form'!$Q$47"},"Dropdown","150 kg","150 kg","150 kg","150 kg"]
[{"$f":"CELL(\"address\",'Order form'!Q47)","v":"'[OMEGA-F_Order form_2021.xlsm]Order form'!$Q$47"},"Dropdown","225 kg","225 kg","225 kg","225 kg"]
[{"$f":"CELL(\"address\",'Order form'!Q47)","v":"'[OMEGA-F_Order form_2021.xlsm]Order form'!$Q$47"},"Dropdown","250 kg","250 kg","250 kg","250 kg"]
[{"$f":"CELL(\"address\",'Order form'!Q47)","v":"'[OMEGA-F_Order form_2021.xlsm]Order form'!$Q$47"},"Dropdown","300 kg","300 kg","300 kg","300 kg"]
[{"$f":"CELL(\"address\",'Order form'!Q48)","v":"'[OMEGA-F_Order form_2021.xlsm]Order form'!$Q$48"},"Dropdown","700 x 750 mm","700 x 750 mm","700 x 750 mm","700 x 750 mm"]
[{"$f":"CELL(\"address\",'Order form'!Q48)","v":"'[OMEGA-F_Order form_2021.xlsm]Order form'!$Q$48"},"Dropdown","750 x 850 mm","750 x 850 mm","750 x 850 mm","750 x 850 mm"]
[{"$f":"CELL(\"address\",'Order form'!Q48)","v":"'[OMEGA-F_Order form_2021.xlsm]Order form'!$Q$48"},"Dropdown","800 x 900 mm","800 x 900 mm","800 x 900 mm","800 x 900 mm"]
[{"$f":"CELL(\"address\",'Order form'!Q48)","v":"'[OMEGA-F_Order form_2021.xlsm]Order form'!$Q$48"},"Dropdown","800 x 1000mm","800 x 1000mm","800 x 1000mm","800 x 1000mm"]
[{"$f":"CELL(\"address\",'Order form'!Q48)","v":"'[OMEGA-F_Order form_2021.xlsm]Order form'!$Q$48"},"Dropdown","Special","Special","Special","Special"]
[{"$f":"CELL(\"address\",'Order form'!Q49)","v":"'[OMEGA-F_Order form_2021.xlsm]Order form'!$Q$49"},"Dropdown","Automatic folding of platform","Automatisches Klappen der Plattform","Automatiquement ","Automático "]
[{"$f":"CELL(\"address\",'Order form'!Q49)","v":"'[OMEGA-F_Order form_2021.xlsm]Order form'!$Q$49"},"Dropdown","Manual folding of platform","Manuelles Klappen der Plattform","Manuellement","Manual"]
[{"$f":"CELL(\"address\",'Order form'!Q50)","v":"'[OMEGA-F_Order form_2021.xlsm]Order form'!$Q$50"},"Dropdown","Upper and lower ramp","Obere und untere Rampe","Rampe supérieure et inférieure","Rampa superior e inferior"]
[{"$f":"CELL(\"address\",'Order form'!Q50)","v":"'[OMEGA-F_Order form_2021.xlsm]Order form'!$Q$50"},"Dropdown","Upper and lower ramp + 90° side access ramp ","Obere und untere Rampe + 90° seitliche Auffahrrampe","Rampe supérieure et inférieure + frontale (latérale à 90 °)","Rampa superior e inferior + rampa frontal (acceso lateral de 90 °)"]
[{"$f":"CELL(\"address\",'Order form'!Q50)","v":"'[OMEGA-F_Order form_2021.xlsm]Order form'!$Q$50"},"Dropdown","Upper and 90° side access ramp (without lower)","Obere und 90° seitliche Auffahrrampe (ohne untere Rampe)","Rampe supérieure et frontale (sans la rampe intérieure)","Rampa superior y frontal (sin inferior)"]
[{"$f":"CELL(\"address\",'Order form'!Q51)","v":"'[OMEGA-F_Order form_2021.xlsm]Order form'!$Q$51"},"Dropdown","No (standard)","Nein (Standard)","Non (standard)","No (estándar)"]
[{"$f":"CELL(\"address\",'Order form'!Q51)","v":"'[OMEGA-F_Order form_2021.xlsm]Order form'!$Q$51"},"Dropdown","Yes","Ja","Oui","Sí"]
[{"$f":"CELL(\"address\",'Order form'!W52)","v":"'[OMEGA-F_Order form_2021.xlsm]Order form'!$W$52"},"Dropdown","150mm","150mm","150mm","150mm"]
[{"$f":"CELL(\"address\",'Order form'!W52)","v":"'[OMEGA-F_Order form_2021.xlsm]Order form'!$W$52"},"Dropdown","200mm (standard)","200mm (Standard)","200mm (standard)","200mm (estándar)"]
[{"$f":"CELL(\"address\",'Order form'!W52)","v":"'[OMEGA-F_Order form_2021.xlsm]Order form'!$W$52"},"Dropdown","300mm (special)","300mm (Spezial)","300mm (special)","300mm (especial)"]
[{"$f":"CELL(\"address\",'Order form'!AE52)","v":"'[OMEGA-F_Order form_2021.xlsm]Order form'!$AE$52"},"Dropdown","150mm","150mm","150mm","150mm"]
[{"$f":"CELL(\"address\",'Order form'!AE52)","v":"'[OMEGA-F_Order form_2021.xlsm]Order form'!$AE$52"},"Dropdown","200mm (standard)","200mm (Standard)","200mm (standard)","200mm (estándar)"]
[{"$f":"CELL(\"address\",'Order form'!AE52)","v":"'[OMEGA-F_Order form_2021.xlsm]Order form'!$AE$52"},"Dropdown","300mm (special)","300mm (Spezial)","300mm (special)","300mm (especial)"]
[{"$f":"CELL(\"address\",'Order form'!Q53)","v":"'[OMEGA-F_Order form_2021.xlsm]Order form'!$Q$53"},"Dropdown","Same colour as platform","Gleiche Farbe wie Plattform","La même couleur que la plate-forme","Del mismo color que la plataforma"]
[{"$f":"CELL(\"address\",'Order form'!Q53)","v":"'[OMEGA-F_Order form_2021.xlsm]Order form'!$Q$53"},"Dropdown","No colour (aluminium natural)","Keine Farbe (Aluminium unbeschichtet)","Pas de couleur (aluminium non revêtu)","Sin color (aluminio natural)"]
[{"$f":"CELL(\"address\",'Order form'!Q54)","v":"'[OMEGA-F_Order form_2021.xlsm]Order form'!$Q$54"},"Dropdown","No (standard)","Nein (Standard)","Non (standard)","No (estándar)"]
[{"$f":"CELL(\"address\",'Order form'!Q54)","v":"'[OMEGA-F_Order form_2021.xlsm]Order form'!$Q$54"},"Dropdown","Yes","Ja","Oui","Sí"]
[{"$f":"CELL(\"address\",'Order form'!Q55)","v":"'[OMEGA-F_Order form_2021.xlsm]Order form'!$Q$55"},"Dropdown","All commands on controls on spiral cable (standard)","Handkassette am Spiralkabel (Standard)","Commande sur fil spiralé","Comandos solo de cable espiral (estándar)"]
[{"$f":"CELL(\"address\",'Order form'!Q55)","v":"'[OMEGA-F_Order form_2021.xlsm]Order form'!$Q$55"},"Dropdown","Alarm + STOP on platform + controls on spiral cable","Alarm + STOP auf Plattform + Handkassette","Alarm + STOP sur plateforme + commande sur fil spiralé","Alarma + STOP en plataforma + controles en cable espiral"]
[{"$f":"CELL(\"address\",'Order form'!Q55)","v":"'[OMEGA-F_Order form_2021.xlsm]Order form'!$Q$55"},"Dropdown","Alarm + STOP + joystick on platform","Alarm + STOP + Joystick auf Plattform","Alarm + STOP + joystick sur la plateforme","Alarma + STOP + joystick en plataforma"]
[{"$f":"CELL(\"address\",'Order form'!Q55)","v":"'[OMEGA-F_Order form_2021.xlsm]Order form'!$Q$55"},"Dropdown","Alarm + STOP + push buttons on platform","Alarm + STOP + Druckknöpfe auf Plattform","Alarm + STOP + boutons-pression sur la plateforme","Alarma + STOP + pulsadores en plataforma."]
[{"$f":"CELL(\"address\",'Order form'!Q55)","v":"'[OMEGA-F_Order form_2021.xlsm]Order form'!$Q$55"},"Dropdown","Dual controls with joystick","Handkassette + Joystick auf Plattform","Commande sur fil spiralé + joystick","Controles duales con joystick"]
[{"$f":"CELL(\"address\",'Order form'!Q55)","v":"'[OMEGA-F_Order form_2021.xlsm]Order form'!$Q$55"},"Dropdown","Dual controls with push buttons","Handkassette + Druckknöpfe auf Plattform","Commande sur fil spiralé + boutons-pression","Controles duales con pulsadores"]
[{"$f":"CELL(\"address\",'Order form'!Q56)","v":"'[OMEGA-F_Order form_2021.xlsm]Order form'!$Q$56"},"Dropdown","Remote with Membrane keypad (standard)","Außensteuerung mit Folientastatur (Standard)","Clavier à membrane (standard)","Teclado de membrana (estándar)"]
[{"$f":"CELL(\"address\",'Order form'!Q56)","v":"'[OMEGA-F_Order form_2021.xlsm]Order form'!$Q$56"},"Dropdown","Remote with Big push buttons (special)","Außensteuerung mit großen Druckknöpfen (Spezial)","Gros boutons poussoirs (special)","Pulsadores grandes (especiales)"]
[{"$f":"CELL(\"address\",'Order form'!Q57)","v":"'[OMEGA-F_Order form_2021.xlsm]Order form'!$Q$57"},"Dropdown","Without key","Ohne Schlüssel","Sans clé","Sin llave"]
[{"$f":"CELL(\"address\",'Order form'!Q57)","v":"'[OMEGA-F_Order form_2021.xlsm]Order form'!$Q$57"},"Dropdown","Mini key","Mini Schlüssel","Mini clé","Mini llave"]
[{"$f":"CELL(\"address\",'Order form'!Q57)","v":"'[OMEGA-F_Order form_2021.xlsm]Order form'!$Q$57"},"Dropdown","BACO key","BACO Schlüssel","BACO clé","Tecla BACO"]
[{"$f":"CELL(\"address\",'Order form'!Q57)","v":"'[OMEGA-F_Order form_2021.xlsm]Order form'!$Q$57"},"Dropdown","EURO key","EURO Schlüssel","EURO clé","Clave del euro"]
[{"$f":"CELL(\"address\",'Order form'!Q59)","v":"'[OMEGA-F_Order form_2021.xlsm]Order form'!$Q$59"},"Dropdown","Wall mounted (standard)","Wandbefestigung (Standard)","Mural","Montaje en pared (estándar)"]
[{"$f":"CELL(\"address\",'Order form'!Q59)","v":"'[OMEGA-F_Order form_2021.xlsm]Order form'!$Q$59"},"Dropdown","Pillar mounted","Stützenbefestigung","Monté sur poteau","Montaje en columna"]
[{"$f":"CELL(\"address\",'Order form'!Q60)","v":"'[OMEGA-F_Order form_2021.xlsm]Order form'!$Q$60"},"Dropdown","No (standard)","Nein (Standard)","Non (standard)","No (estándar)"]
[{"$f":"CELL(\"address\",'Order form'!Q60)","v":"'[OMEGA-F_Order form_2021.xlsm]Order form'!$Q$60"},"Dropdown","Yes","Ja","Oui","Sí"]
[{"$f":"CELL(\"address\",'Order form'!B62)","v":"'[OMEGA-F_Order form_2021.xlsm]Order form'!$B$62"},"Label","Safety features acc. to EN 81-40","Sicherheitsoptionen gemäß EN 81-40","Options de sécurité selon EN 81:40","Características de seguridad según EN 81-40"]
[{"$f":"CELL(\"address\",'Order form'!B63)","v":"'[OMEGA-F_Order form_2021.xlsm]Order form'!$B$63"},"Label","Safety bottom","Kontaktboden","Fond de sécurité","Fondo de seguridad"]
[{"$f":"CELL(\"address\",'Order form'!B64)","v":"'[OMEGA-F_Order form_2021.xlsm]Order form'!$B$64"},"Label","Lateral contact bars","Seitliche Kontaktleisten","Bords sensibles plate-forme","Regleta de seguridad laterales"]
[{"$f":"CELL(\"address\",'Order form'!B65)","v":"'[OMEGA-F_Order form_2021.xlsm]Order form'!$B$65"},"Label","Overload signal","Überlastsignal","Contrôle de surcharge","Señal de sobrecarga"]
[{"$f":"CELL(\"address\",'Order form'!B66)","v":"'[OMEGA-F_Order form_2021.xlsm]Order form'!$B$66"},"Label","Visual signal (bespoke solution)","Visuelles Signal","Signal visuel sur la plate-forme","Señal visual (solución a medida)"]
[{"$f":"CELL(\"address\",'Order form'!Q63)","v":"'[OMEGA-F_Order form_2021.xlsm]Order form'!$Q$63"},"Dropdown","No","Nein","Non","No"]
[{"$f":"CELL(\"address\",'Order form'!Q63)","v":"'[OMEGA-F_Order form_2021.xlsm]Order form'!$Q$63"},"Dropdown","Yes","Ja","Oui","Sí"]
[{"$f":"CELL(\"address\",'Order form'!Q64)","v":"'[OMEGA-F_Order form_2021.xlsm]Order form'!$Q$64"},"Dropdown","No","Nein","Non","No"]
[{"$f":"CELL(\"address\",'Order form'!Q64)","v":"'[OMEGA-F_Order form_2021.xlsm]Order form'!$Q$64"},"Dropdown","Yes","Ja","Oui","Sí"]
[{"$f":"CELL(\"address\",'Order form'!Q65)","v":"'[OMEGA-F_Order form_2021.xlsm]Order form'!$Q$65"},"Dropdown","No","Nein","Non","No"]
[{"$f":"CELL(\"address\",'Order form'!Q65)","v":"'[OMEGA-F_Order form_2021.xlsm]Order form'!$Q$65"},"Dropdown","Yes","Ja","Oui","Sí"]
[{"$f":"CELL(\"address\",'Order form'!Q66)","v":"'[OMEGA-F_Order form_2021.xlsm]Order form'!$Q$66"},"Dropdown","No","Nein","Non","No"]
[{"$f":"CELL(\"address\",'Order form'!Q66)","v":"'[OMEGA-F_Order form_2021.xlsm]Order form'!$Q$66"},"Dropdown","Yes","Ja","Oui","Sí"]
[{"$f":"CELL(\"address\",'Order form'!B68)","v":"'[OMEGA-F_Order form_2021.xlsm]Order form'!$B$68"},"Label","Further specifications","Weitere Optionen","Autres options","Especificaciones adicionales"]
[{"$f":"CELL(\"address\",'Order form'!B69)","v":"'[OMEGA-F_Order form_2021.xlsm]Order form'!$B$69"},"Label","Protective cover for outdoor platform","Plastikabdeckung für Außenanlage","Housse plastique pour unité extérieur","Cubierta de plástico para elevador al aire libre"]
[{"$f":"CELL(\"address\",'Order form'!B70)","v":"'[OMEGA-F_Order form_2021.xlsm]Order form'!$B$70"},"Label","Plastic cover for outdoor compact motor","Plastik Abdeckung für Kompaktmotor","Housse plastique pour moteur extérieur","Cubierta de plástico para motor al aire libre"]
[{"$f":"CELL(\"address\",'Order form'!B71)","v":"'[OMEGA-F_Order form_2021.xlsm]Order form'!$B$71"},"Label","Padlock against unfolding of manual platform","Schloss für manuelle Plattform","Verrouillage de plate-forme","Candado contra el despliegue de la plataforma"]
[{"$f":"CELL(\"address\",'Order form'!B72)","v":"'[OMEGA-F_Order form_2021.xlsm]Order form'!$B$72"},"Label","Rail fillings","Verkleidung zwischen den Stützen","-","Rellenos de la guia"]
[{"$f":"CELL(\"address\",'Order form'!B73)","v":"'[OMEGA-F_Order form_2021.xlsm]Order form'!$B$73"},"Label","Safety pipe","Sicherheitsrohr","Tuyau de sécurité","Tubo de seguridad"]
[{"$f":"CELL(\"address\",'Order form'!B74)","v":"'[OMEGA-F_Order form_2021.xlsm]Order form'!$B$74"},"Label","Installation pipe","Installationsrohr","tube d'installation","Tubo de cable"]
[{"$f":"CELL(\"address\",'Order form'!B75)","v":"'[OMEGA-F_Order form_2021.xlsm]Order form'!$B$75"},"Label","Reinforced upper rail pipe","Verstärktes oberes Schienenrohr","Tube de rail supérieur renforcé","Tubo reforzado del riel superior"]
[{"$f":"CELL(\"address\",'Order form'!B79)","v":"'[OMEGA-F_Order form_2021.xlsm]Order form'!$B$79"},"Label","Warranty","Warranty time","Temps de garantie","Garantía"]
[{"$f":"CELL(\"address\",'Order form'!B80)","v":"'[OMEGA-F_Order form_2021.xlsm]Order form'!$B$80"},"Label","Stainless steel label","Stainless steel label","Étiquette en acier inoxydable","Etiqueta de acero inoxidable"]
[{"$f":"CELL(\"address\",'Order form'!B81)","v":"'[OMEGA-F_Order form_2021.xlsm]Order form'!$B$81"},"Label","Rope tensioner","Seilspanner","Tendeur de corde","Dispositivo para tensionar la cadena"]
[{"$f":"CELL(\"address\",'Order form'!B82)","v":"'[OMEGA-F_Order form_2021.xlsm]Order form'!$B$82"},"Label","Transport box","Transportkiste","Boîte de transport","Caja de transporte"]
[{"$f":"CELL(\"address\",'Order form'!B85)","v":"'[OMEGA-F_Order form_2021.xlsm]Order form'!$B$85"},"Label","Old overspeed governor","Alter Geschwindigkeitsbegrenzer","Ancien limiteur de vitesse","Antiguo limitador de velocidad"]
[{"$f":"CELL(\"address\",'Order form'!B86)","v":"'[OMEGA-F_Order form_2021.xlsm]Order form'!$B$86"},"Label","Special brushes for upper trolley","Spezialbürsten für oberes Fahrwerk","Brosses spéciales pour chariot supérieur","Cepillos especiales para el carro superior"]
[{"$f":"CELL(\"address\",'Order form'!B87)","v":"'[OMEGA-F_Order form_2021.xlsm]Order form'!$B$87"},"Label","Drawing time urgency in days","Zeichnungszeit Dringlichkeit in Tagen","Urgence du design en jours","Urgencia de dibujo en días"]
[{"$f":"CELL(\"address\",'Order form'!Q69)","v":"'[OMEGA-F_Order form_2021.xlsm]Order form'!$Q$69"},"Dropdown","Yes (for outdoor)","Ja (für Außenanlage)","Oui","Sí (para exterior)"]
[{"$f":"CELL(\"address\",'Order form'!Q69)","v":"'[OMEGA-F_Order form_2021.xlsm]Order form'!$Q$69"},"Dropdown","No","Nein","Non","No"]
[{"$f":"CELL(\"address\",'Order form'!Q70)","v":"'[OMEGA-F_Order form_2021.xlsm]Order form'!$Q$70"},"Dropdown","No","Nein","Non","No"]
[{"$f":"CELL(\"address\",'Order form'!Q1)","v":"'[OMEGA-F_Order form_2021.xlsm]Order form'!$Q$1"},"Dropdown","Yes","Ja","Oui","Sí"]
[{"$f":"CELL(\"address\",'Order form'!Q71)","v":"'[OMEGA-F_Order form_2021.xlsm]Order form'!$Q$71"},"Dropdown","No (standard)","Nein (Standard)","Non (standard)","No (estándar)"]
[{"$f":"CELL(\"address\",'Order form'!Q71)","v":"'[OMEGA-F_Order form_2021.xlsm]Order form'!$Q$71"},"Dropdown","Yes","Ja","Oui","Sí"]
[{"$f":"CELL(\"address\",'Order form'!Q72)","v":"'[OMEGA-F_Order form_2021.xlsm]Order form'!$Q$72"},"Dropdown","None","None","None","Ninguno"]
[{"$f":"CELL(\"address\",'Order form'!Q72)","v":"'[OMEGA-F_Order form_2021.xlsm]Order form'!$Q$72"},"Dropdown","Connex glass","Sicherheitsglas","Connex glass","Vidrio Connex"]
[{"$f":"CELL(\"address\",'Order form'!Q72)","v":"'[OMEGA-F_Order form_2021.xlsm]Order form'!$Q$72"},"Dropdown","Perforated metal plates","Lochblech","Perforated metal plates","Chapas perforadas"]
[{"$f":"CELL(\"address\",'Order form'!Q72)","v":"'[OMEGA-F_Order form_2021.xlsm]Order form'!$Q$72"},"Dropdown","Wooden","Holz","Wooden","De madera"]
[{"$f":"CELL(\"address\",'Order form'!Q72)","v":"'[OMEGA-F_Order form_2021.xlsm]Order form'!$Q$72"},"Dropdown","Steel rods","Stahlstreben","Steel rods","Varillas de acero"]
[{"$f":"CELL(\"address\",'Order form'!Q72)","v":"'[OMEGA-F_Order form_2021.xlsm]Order form'!$Q$72"},"Dropdown","Stainless steel rods","Edelstahlstreben","Stainless steel rods","Varillas de acero inoxidable"]
[{"$f":"CELL(\"address\",'Order form'!Q73)","v":"'[OMEGA-F_Order form_2021.xlsm]Order form'!$Q$73"},"Dropdown","No","Nein","Non","No"]
[{"$f":"CELL(\"address\",'Order form'!Q73)","v":"'[OMEGA-F_Order form_2021.xlsm]Order form'!$Q$73"},"Dropdown","Yes","Ja","Oui","Sí"]
[{"$f":"CELL(\"address\",'Order form'!Q74)","v":"'[OMEGA-F_Order form_2021.xlsm]Order form'!$Q$74"},"Dropdown","No","Nein","Non","No"]
[{"$f":"CELL(\"address\",'Order form'!Q74)","v":"'[OMEGA-F_Order form_2021.xlsm]Order form'!$Q$74"},"Dropdown","Yes","Ja","Oui","Sí"]
[{"$f":"CELL(\"address\",'Order form'!Q75)","v":"'[OMEGA-F_Order form_2021.xlsm]Order form'!$Q$75"},"Dropdown","No","Nein","Non","No"]
[{"$f":"CELL(\"address\",'Order form'!Q75)","v":"'[OMEGA-F_Order form_2021.xlsm]Order form'!$Q$75"},"Dropdown","Yes","Ja","Oui","Sí"]
[{"$f":"CELL(\"address\",'Order form'!Q80)","v":"'[OMEGA-F_Order form_2021.xlsm]Order form'!$Q$80"},"Dropdown","None","None","None","Ninguno"]
[{"$f":"CELL(\"address\",'Order form'!Q80)","v":"'[OMEGA-F_Order form_2021.xlsm]Order form'!$Q$80"},"Dropdown","ALTECH","ALTECH","ALTECH","ALTECH"]
[{"$f":"CELL(\"address\",'Order form'!Q80)","v":"'[OMEGA-F_Order form_2021.xlsm]Order form'!$Q$80"},"Dropdown","ARES","ARES","ARES","ARES"]
[{"$f":"CELL(\"address\",'Order form'!Q80)","v":"'[OMEGA-F_Order form_2021.xlsm]Order form'!$Q$80"},"Dropdown","LEHNER","LEHNER","LEHNER","LEHNER"]
[{"$f":"CELL(\"address\",'Order form'!Q80)","v":"'[OMEGA-F_Order form_2021.xlsm]Order form'!$Q$80"},"Dropdown","WEIGL","WEIGL","WEIGL","WEIGL"]
[{"$f":"CELL(\"address\",'Order form'!Q80)","v":"'[OMEGA-F_Order form_2021.xlsm]Order form'!$Q$80"},"Dropdown","OTIS","OTIS","OTIS","OTIS"]
[{"$f":"CELL(\"address\",'Order form'!Q80)","v":"'[OMEGA-F_Order form_2021.xlsm]Order form'!$Q$80"},"Dropdown","STANNAH","STANNAH","STANNAH","STANNAH"]
[{"$f":"CELL(\"address\",'Order form'!Q80)","v":"'[OMEGA-F_Order form_2021.xlsm]Order form'!$Q$80"},"Dropdown","TERRY","TERRY","TERRY","TERRY"]
[{"$f":"CELL(\"address\",'Order form'!Q81)","v":"'[OMEGA-F_Order form_2021.xlsm]Order form'!$Q$81"},"Dropdown","Yes","Ja","Oui","Sí"]
[{"$f":"CELL(\"address\",'Order form'!Q81)","v":"'[OMEGA-F_Order form_2021.xlsm]Order form'!$Q$81"},"Dropdown","No","Nein","Non","No"]
[{"$f":"CELL(\"address\",'Order form'!Q82)","v":"'[OMEGA-F_Order form_2021.xlsm]Order form'!$Q$82"},"Dropdown","None","None","None","Ninguno"]
[{"$f":"CELL(\"address\",'Order form'!Q82)","v":"'[OMEGA-F_Order form_2021.xlsm]Order form'!$Q$82"},"Dropdown","Q1 - Standardbox","Q1 - Standard Transportkiste","Q1","Q1"]
[{"$f":"CELL(\"address\",'Order form'!Q82)","v":"'[OMEGA-F_Order form_2021.xlsm]Order form'!$Q$82"},"Dropdown","Q3 - Fumigated wooden box for airfreight","Q3 - Behandelte Transportkiste für Luftfracht","Q3 air cargo","Carga aérea Q3"]
[{"$f":"CELL(\"address\",'Order form'!Q82)","v":"'[OMEGA-F_Order form_2021.xlsm]Order form'!$Q$82"},"Dropdown","Q3 - Fumigated wooden box for seafreight","Q3 - Behandelte Transportkiste für Seefracht","Q3 non air cargo","Carga no aérea Q3"]
[{"$f":"CELL(\"address\",'Order form'!Q85)","v":"'[OMEGA-F_Order form_2021.xlsm]Order form'!$Q$85"},"Dropdown","No","Nein","Non","No"]
[{"$f":"CELL(\"address\",'Order form'!Q85)","v":"'[OMEGA-F_Order form_2021.xlsm]Order form'!$Q$85"},"Dropdown","Yes","Ja","Oui","Sí"]
[{"$f":"CELL(\"address\",'Order form'!Q86)","v":"'[OMEGA-F_Order form_2021.xlsm]Order form'!$Q$86"},"Dropdown","No","Nein","Non","No"]
[{"$f":"CELL(\"address\",'Order form'!Q86)","v":"'[OMEGA-F_Order form_2021.xlsm]Order form'!$Q$86"},"Dropdown","Yes","Ja","Oui","Sí"]
[{"$f":"CELL(\"address\",'Order form'!B89)","v":"'[OMEGA-F_Order form_2021.xlsm]Order form'!$B$89"},"Label","Surface treatment","Oberflächenbehandlung","Traitement de surface","Tratamiento de superficies"]
[{"$f":"CELL(\"address\",'Order form'!B90)","v":"'[OMEGA-F_Order form_2021.xlsm]Order form'!$B$90"},"Label","Platform and carriage","Plattform und Fahrwagen","Plate-forme et chariot","Plataforma y carro"]
[{"$f":"CELL(\"address\",'Order form'!B91)","v":"'[OMEGA-F_Order form_2021.xlsm]Order form'!$B$91"},"Label","Drive","Antrieb","Entraînement  ","Accionamiento"]
[{"$f":"CELL(\"address\",'Order form'!B92)","v":"'[OMEGA-F_Order form_2021.xlsm]Order form'!$B$92"},"Label","Rail and brackets","Schiene","Rail","Guía"]
[{"$f":"CELL(\"address\",'Order form'!B93)","v":"'[OMEGA-F_Order form_2021.xlsm]Order form'!$B$93"},"Label","Pillars","Stützen","Supports","Pilares"]
[{"$f":"CELL(\"address\",'Order form'!Q90)","v":"'[OMEGA-F_Order form_2021.xlsm]Order form'!$Q$90"},"Dropdown","RAL 7035 (standard)","RAL 7035 (Standard)","RAL 7035 (standard)","RAL 7035 (estándar)"]
[{"$f":"CELL(\"address\",'Order form'!Q90)","v":"'[OMEGA-F_Order form_2021.xlsm]Order form'!$Q$90"},"Dropdown","RAL 9007 (standard)","RAL 9007 (Standard)","RAL 9007 (standard)","RAL 9007 (standard)"]
[{"$f":"CELL(\"address\",'Order form'!Q90)","v":"'[OMEGA-F_Order form_2021.xlsm]Order form'!$Q$90"},"Dropdown","Special RAL","Spezial RAL","Special RAL","Special RAL"]
[{"$f":"CELL(\"address\",'Order form'!Q90)","v":"'[OMEGA-F_Order form_2021.xlsm]Order form'!$Q$90"},"Dropdown","Zinc + RAL 7035 (outdoor standard)","Verzinkt + RAL 7035 (Außenanlage Standard)","Galvanisé + RAL 7035 (extérieure)","zinc + RAL 7035 (estándar para exteriores)"]
[{"$f":"CELL(\"address\",'Order form'!Q90)","v":"'[OMEGA-F_Order form_2021.xlsm]Order form'!$Q$90"},"Dropdown","Zinc + RAL 9007 (outdoor standard)","Verzinkt + RAL 9007 (Außenanlage Standard)","Galvanisé + RAL 9007 (extérieure)","Galvanisé + RAL 9007 (estándar para exteriores)"]
[{"$f":"CELL(\"address\",'Order form'!Q90)","v":"'[OMEGA-F_Order form_2021.xlsm]Order form'!$Q$90"},"Dropdown","Zinc + Special RAL","Verzinkt + Spezial RAL","Galvanisé + Special RAL","Zinc + Special RAL"]
[{"$f":"CELL(\"address\",'Order form'!Q90)","v":"'[OMEGA-F_Order form_2021.xlsm]Order form'!$Q$90"},"Dropdown","Stainless 304 + Special RAL","Edelstahl 304 + Spezial RAL","Acier inoxydable 304 + Special RAL","Inoxidable 304 + Special RAL"]
[{"$f":"CELL(\"address\",'Order form'!Q90)","v":"'[OMEGA-F_Order form_2021.xlsm]Order form'!$Q$90"},"Dropdown","Stainless 316 + Special RAL","Edelstahl 316 + Spezial RAL","Acier inoxydable 316 + Special RAL","Inoxidable 316 + Special RAL"]
[{"$f":"CELL(\"address\",'Order form'!Q91)","v":"'[OMEGA-F_Order form_2021.xlsm]Order form'!$Q$91"},"Dropdown","RAL 7035 (standard)","RAL 7035 (Standard)","RAL 7035 (standard)","RAL 7035 (estándar)"]
[{"$f":"CELL(\"address\",'Order form'!Q91)","v":"'[OMEGA-F_Order form_2021.xlsm]Order form'!$Q$91"},"Dropdown","RAL 9007 (standard)","RAL 9007 (Standard)","RAL 9007 (standard)","RAL 9007 (standard)"]
[{"$f":"CELL(\"address\",'Order form'!Q91)","v":"'[OMEGA-F_Order form_2021.xlsm]Order form'!$Q$91"},"Dropdown","Special RAL","Spezial RAL","Special RAL","Special RAL"]
[{"$f":"CELL(\"address\",'Order form'!Q91)","v":"'[OMEGA-F_Order form_2021.xlsm]Order form'!$Q$91"},"Dropdown","Zinc + RAL 7035 (outdoor standard)","Verzinkt + RAL 7035 (Außenanlage)","Galvanisé + RAL 7035 (extérieure)","zinc + RAL 7035 (estándar para exteriores)"]
[{"$f":"CELL(\"address\",'Order form'!Q91)","v":"'[OMEGA-F_Order form_2021.xlsm]Order form'!$Q$91"},"Dropdown","Zinc + RAL 9007 (outdoor standard)","Verzinkt + RAL 9007 (Außenanlage Standard)","Galvanisé + RAL 9007 (extérieure)","Galvanisé + RAL 9007 (estándar para exteriores)"]
[{"$f":"CELL(\"address\",'Order form'!Q91)","v":"'[OMEGA-F_Order form_2021.xlsm]Order form'!$Q$91"},"Dropdown","Zinc + Special RAL","Verzinkt + Spezial RAL","Galvanisé + Special RAL","Zinc + Special RAL"]
[{"$f":"CELL(\"address\",'Order form'!Q92)","v":"'[OMEGA-F_Order form_2021.xlsm]Order form'!$Q$92"},"Dropdown","RAL 7035 (standard)","RAL 7035 (Standard)","RAL 7035 (standard)","RAL 7035 (estándar)"]
[{"$f":"CELL(\"address\",'Order form'!Q92)","v":"'[OMEGA-F_Order form_2021.xlsm]Order form'!$Q$92"},"Dropdown","RAL 9007 (standard)","RAL 9007 (Standard)","RAL 9007 (standard)","RAL 9007 (standard)"]
[{"$f":"CELL(\"address\",'Order form'!Q92)","v":"'[OMEGA-F_Order form_2021.xlsm]Order form'!$Q$92"},"Dropdown","Special RAL","Spezial RAL","Special RAL","Special RAL"]
[{"$f":"CELL(\"address\",'Order form'!Q92)","v":"'[OMEGA-F_Order form_2021.xlsm]Order form'!$Q$92"},"Dropdown","Zinc (outdoor standard)","Verzinkt  (Außenanlage Standard)","Galvanisé (extérieure)","Zinc (estándar para exteriores)"]
[{"$f":"CELL(\"address\",'Order form'!Q92)","v":"'[OMEGA-F_Order form_2021.xlsm]Order form'!$Q$92"},"Dropdown","Stainless 304","Edelstahl 304","Acier inoxydable 304","Inoxidable 304"]
[{"$f":"CELL(\"address\",'Order form'!Q92)","v":"'[OMEGA-F_Order form_2021.xlsm]Order form'!$Q$92"},"Dropdown","Stainless 316 (special)","Edelstahl 316 (Spezial)","Acier inoxydable 316 (special)","Inoxidable 316 (especial)"]
[{"$f":"CELL(\"address\",'Order form'!Q93)","v":"'[OMEGA-F_Order form_2021.xlsm]Order form'!$Q$93"},"Dropdown","-","-","-","-"]
[{"$f":"CELL(\"address\",'Order form'!Q93)","v":"'[OMEGA-F_Order form_2021.xlsm]Order form'!$Q$93"},"Dropdown","RAL 7035 (standard)","RAL 7035 (Standard)","RAL 7035 (standard)","RAL 7035 (estándar)"]
[{"$f":"CELL(\"address\",'Order form'!Q93)","v":"'[OMEGA-F_Order form_2021.xlsm]Order form'!$Q$93"},"Dropdown","RAL 9007 (standard)","RAL 9007 (Standard)","RAL 9007 (standard)","RAL 9007 (standard)"]
[{"$f":"CELL(\"address\",'Order form'!Q93)","v":"'[OMEGA-F_Order form_2021.xlsm]Order form'!$Q$93"},"Dropdown","Special RAL","Spezial RAL","Special RAL","Special RAL"]
[{"$f":"CELL(\"address\",'Order form'!Q93)","v":"'[OMEGA-F_Order form_2021.xlsm]Order form'!$Q$93"},"Dropdown","Zinc (outdoor standard)","Verzinkt (Außenanlage Standard)","Galvanisé (standard extérieure)","Zinc  (estándar para exteriores)"]
[]
[]
[{"$f":"CELL(\"address\",'Order form'!Q93)","v":"'[OMEGA-F_Order form_2021.xlsm]Order form'!$Q$93"},"Dropdown","Stainless 304","Edelstahl 304","Acier inoxydable 304","Inoxidable 304"]
[{"$f":"CELL(\"address\",'Order form'!Q93)","v":"'[OMEGA-F_Order form_2021.xlsm]Order form'!$Q$93"},"Dropdown","Stainless 316 (special)","Edelstahl 316 (Spezial)","Acier inoxydable 316 (special)","Inoxidable 316 (especial)"]
[{"$f":"CELL(\"address\",'Order form'!B95)","v":"'[OMEGA-F_Order form_2021.xlsm]Order form'!$B$95"},"Label","Supporting structure","Art der Befestigung","Structure de support","Estructura de soporte"]
[{"$f":"CELL(\"address\",'Order form'!B96)","v":"'[OMEGA-F_Order form_2021.xlsm]Order form'!$B$96"},"Label","Fixing of the rails","Fixierung der Schiene","Fixation des rails","Fijación de la guía"]
[{"$f":"CELL(\"address\",'Order form'!B97)","v":"'[OMEGA-F_Order form_2021.xlsm]Order form'!$B$97"},"Label","Arrangement of pillars","Stützenanordnung","Emplacement des supports","Arreglo de pilares"]
[{"$f":"CELL(\"address\",'Order form'!B98)","v":"'[OMEGA-F_Order form_2021.xlsm]Order form'!$B$98"},"Label","Vertical adjustment slot on pillars","Vertikale Einstellschlitze an den Stützen","Fentes verticales de réglage sur les supports","Ranuras de ajuste en los pilares"]
[{"$f":"CELL(\"address\",'Order form'!B99)","v":"'[OMEGA-F_Order form_2021.xlsm]Order form'!$B$99"},"Label","Distance between pillars > 0,6m","Distanz zwischen den Stützen > 0,6m","Distance entre les supports > 0,6m","Distancia entre pilares > 0,6m"]
[{"$f":"CELL(\"address\",'Order form'!B100)","v":"'[OMEGA-F_Order form_2021.xlsm]Order form'!$B$100"},"Label","Pillar base","Pillar base","Pillar base","Base del pilar"]
[{"$f":"CELL(\"address\",'Order form'!Q96)","v":"'[OMEGA-F_Order form_2021.xlsm]Order form'!$Q$96"},"Dropdown","On the wall only","An die Wand","Directement au mur","Solo en la pared"]
[{"$f":"CELL(\"address\",'Order form'!Q96)","v":"'[OMEGA-F_Order form_2021.xlsm]Order form'!$Q$96"},"Dropdown","On the wall + pillars","Auf Stützen und Wand","Sur supports et mur","En la pared + pilares"]
[{"$f":"CELL(\"address\",'Order form'!Q96)","v":"'[OMEGA-F_Order form_2021.xlsm]Order form'!$Q$96"},"Dropdown","On the pillars only","Auf Stützen","Sur supports","Solo en los pilares"]
[{"$f":"CELL(\"address\",'Order form'!Q97)","v":"'[OMEGA-F_Order form_2021.xlsm]Order form'!$Q$97"},"Dropdown","-","-","-","-"]
[{"$f":"CELL(\"address\",'Order form'!Q97)","v":"'[OMEGA-F_Order form_2021.xlsm]Order form'!$Q$97"},"Dropdown","On the steps (standard)","Auf den Stufen","Sue les marches","En los escalones (estándar)"]
[{"$f":"CELL(\"address\",'Order form'!Q97)","v":"'[OMEGA-F_Order form_2021.xlsm]Order form'!$Q$97"},"Dropdown","On the string of the staircase","An die Treppenwange","Contre le limon de l'escalier","En la cuerda de la escalera"]
[{"$f":"CELL(\"address\",'Order form'!Q97)","v":"'[OMEGA-F_Order form_2021.xlsm]Order form'!$Q$97"},"Dropdown","Along the string of the staircase and down to the ground floor","Entlang der Treppenwange auf den Boden","Contre le limon et posés sur le sol dans le vide de l'escalier","A lo largo de la cuerda de la escalera y hasta la planta baja."]
[{"$f":"CELL(\"address\",'Order form'!Q98)","v":"'[OMEGA-F_Order form_2021.xlsm]Order form'!$Q$98"},"Dropdown","-","-","-","-"]
[{"$f":"CELL(\"address\",'Order form'!Q98)","v":"'[OMEGA-F_Order form_2021.xlsm]Order form'!$Q$98"},"Dropdown","Yes","Ja","Oui","Sí"]
[{"$f":"CELL(\"address\",'Order form'!Q98)","v":"'[OMEGA-F_Order form_2021.xlsm]Order form'!$Q$98"},"Dropdown","No","Nein","Non","No"]
[{"$f":"CELL(\"address\",'Order form'!Q99)","v":"'[OMEGA-F_Order form_2021.xlsm]Order form'!$Q$99"},"Dropdown","No","Nein","Non","No"]
[{"$f":"CELL(\"address\",'Order form'!Q99)","v":"'[OMEGA-F_Order form_2021.xlsm]Order form'!$Q$99"},"Dropdown","Yes","Ja","Oui","Sí"]
[{"$f":"CELL(\"address\",'Order form'!Q100)","v":"'[OMEGA-F_Order form_2021.xlsm]Order form'!$Q$100"},"Dropdown","not specified","nicht spezifiziert","not specified","no especificado"]
[{"$f":"CELL(\"address\",'Order form'!Q100)","v":"'[OMEGA-F_Order form_2021.xlsm]Order form'!$Q$100"},"Dropdown","triangle","Dreieck","triangle","triangular"]
[{"$f":"CELL(\"address\",'Order form'!Q100)","v":"'[OMEGA-F_Order form_2021.xlsm]Order form'!$Q$100"},"Dropdown","diamond","Diamant","diamond","diamante"]
[{"$f":"CELL(\"address\",'Order form'!Q100)","v":"'[OMEGA-F_Order form_2021.xlsm]Order form'!$Q$100"},"Dropdown","long diamond","Langer Diamant","long diamond","diamante largo"]
[{"$f":"CELL(\"address\",'Order form'!B104)","v":"'[OMEGA-F_Order form_2021.xlsm]Order form'!$B$104"},"Label","Additional information","Zusätzliche Information","Information additionnelle","Información adicional"]
[{"$f":"CELL(\"address\",'Order form'!B113)","v":"'[OMEGA-F_Order form_2021.xlsm]Order form'!$B$113"},"Label","Delivery date","Lieferdatum","Date de livraison","Fecha de entrega"]
[{"$f":"CELL(\"address\",'Order form'!V113)","v":"'[OMEGA-F_Order form_2021.xlsm]Order form'!$V$113"},"Label","Prepared by","Bearbeitet von","Preparé par","Preparado por"]
[{"$f":"CELL(\"address\",'Order form'!H113)","v":"'[OMEGA-F_Order form_2021.xlsm]Order form'!$H$113"},"Label","Week","Woche","Semaine","Semana"]
[{"$f":"CELL(\"address\",'Order form'!AM90)","v":"'[OMEGA-F_Order form_2021.xlsm]Order form'!$AM$90"},"Formula","=IF(Q22=\"outdoor\",\"Please remember to choose surface treatment for outdoor\", \"\")","=IF(Q22=\"Im Außenbereich\",\"Bitte denken Sie daran, die Oberflächenbehandlung für den Außenbereich zu wählen.\", \"\")","=IF(Q22=\"De plein air\",\"N'oubliez pas de choisir le traitement de surface pour l'extérieur\", \"\")","=IF(Q22=\"Al aire libre\",\"Por favor, recuerde elegir el tratamiento de superficie para exteriores\", \"\")"]
[{"$f":"CELL(\"address\",'Order form'!AM91)","v":"'[OMEGA-F_Order form_2021.xlsm]Order form'!$AM$91"},"Formula","=IF(Q22=\"outdoor\",\"Please remember to choose surface treatment for outdoor\", \"\")","=IF(Q22=\"Im Außenbereich\",\"Bitte denken Sie daran, die Oberflächenbehandlung für den Außenbereich zu wählen.\", \"\")","=IF(Q22=\"De plein air\",\"N'oubliez pas de choisir le traitement de surface pour l'extérieur\", \"\")","=IF(Q22=\"Al aire libre\",\"Por favor, recuerde elegir el tratamiento de superficie para exteriores\", \"\")"]
[{"$f":"CELL(\"address\",'Order form'!AM92)","v":"'[OMEGA-F_Order form_2021.xlsm]Order form'!$AM$92"},"Formula","=IF(Q22=\"outdoor\",\"Please remember to choose surface treatment for outdoor\", \"\")","=IF(Q22=\"Im Außenbereich\",\"Bitte denken Sie daran, die Oberflächenbehandlung für den Außenbereich zu wählen.\", \"\")","=IF(Q22=\"De plein air\",\"N'oubliez pas de choisir le traitement de surface pour l'extérieur\", \"\")","=IF(Q22=\"Al aire libre\",\"Por favor, recuerde elegir el tratamiento de superficie para exteriores\", \"\")"]
[{"$f":"CELL(\"address\",'Order form'!AM93)","v":"'[OMEGA-F_Order form_2021.xlsm]Order form'!$AM$93"},"Formula","=IF(Q22=\"outdoor\",\"Please remember to choose surface treatment for outdoor\", \"\")","=IF(Q22=\"Im Außenbereich\",\"Bitte denken Sie daran, die Oberflächenbehandlung für den Außenbereich zu wählen.\", \"\")","=IF(Q22=\"De plein air\",\"N'oubliez pas de choisir le traitement de surface pour l'extérieur\", \"\")","=IF(Q22=\"Al aire libre\",\"Por favor, recuerde elegir el tratamiento de superficie para exteriores\", \"\")"]

{"sheet":"LangBackup","index":3,"n_rows":164,"n_cols":5,"rows_kept":164,"cut":false,"hidden":true,"merged":[]}
["Cell","Type","English","Deutsch","French"]
["Q3","Label","ALPHA stairlift","Alpha Treppenlift"]
["Q4","Label","Order form","Bestellformular","Bon de commande"]
["D3","Label","Dimension No.","Abmessung Nr.","Numéro de dimension"]
["D5","Label","Language","Sprache","La langue"]
["AD3","Label","Date:","Datum:","l' date"]
["AD4","Label","Version:","Version:","Version"]
["P6","Label","Distributor: (always fill out)","Händler: (immer ausfüllen)","Distributeur: (remplissez toujours)"]
["AB6","Label","Delivery address: (always fill out)","Lieferadresse: (immer ausfüllen)","Adresse de livraison: (remplissez toujours)"]
["P7","Label","Company:","Firma:","Enterprise"]
["B7","Label","Company:","Firma:","Enterprise"]
["P9","Label","Address","Anschrift","Une robe"]
["AB9","Label","Address","Anschrift","Une robe"]
["P10","Label","Postcode","Postleitzahl","Code postal"]
["AB10","Label","Postcode","Postleitzahl","Code postal"]
["P11","Label","City","Stadt","Ville"]
["AB11","Label","City","Stadt","Ville"]
["P12","Label","Country","Land","le pays"]
["AB12","Label","Country","Land","le pays"]
["D23","Label","Installation location","Installationsort"]
["D24","Label","Installation side","Montageseite","Côté d'installation"]
["C17","Label","Pick up address for lifts: Spedition Englmayer, Wiesenstrasse 71, 4600 Wels, Austria","ABHOLADRESSE: Spedition Englmayer, Wiesenstrasse 71, 4600 Wels, Austria"]
["C19","Label","Production No.","Produktionsnummer"]
["I19","Label","Order reference name (or number)","Auftragsreferenz (Name oder Nummer)"]
["C22","Label","Rail specification","Schienenspezifikation"]
["D25","Label","Rail length in meters rounded","Schienenlänge (ungefähr in m)","Longueur du rail en mètres arrondis"]
["D26","Label","Lower stop","Untere Haltestelle","Arrêt inférieur"]
["D27","Label","Upper stop","Obere Haltestelle","Arrêt supérieur"]
["D28","Label","Number of 90° curves","Anzahl der 90° Kurven","Nombre de courbes à 90°"]
["D28","Label","Number of 180° curves","Anzahl der 180° Kurven","Nombre de courbes à 180°"]
["D30","Label","Number of special curves","Anzahl der Spezialkurven","Nombre de courbes spéciales"]
["D31","Label","Number of negative curves","Anzahl der Negativkurven"]
["D32","Label","Number of vertical bends","Number of vertical bends"]
["D33","Label","Number of intermediate stops","Anzahl der Zwischenhaltestellen"]
["D34","Label","Rail surface treatment","Schienenfarbe"]
["AD26","Formula","=IF(R26=\"straight start with bottom overrun\",\"mm from first step to end of chair\", \"\")","=IF(R26=\"Gerade mit horizontalem Auslauf\",\"mm von erster Stufe bis Ende Sitz\", \"\")"]
["AD27","Formula","=IF(R27=\"straight top overrun\",\"mm from last step to end of chair\", \"\")","=IF(R27=\"Gerader Überlauf\",\"mm von letzter Stufe bis Ende Sitz\", \"\")"]
["R23","Dropdown","Indoor","Innen"]
["R23","Dropdown","Outdoor","Im Außenbereich"]
["R24","Dropdown","Left","Links","La gauche"]
["R24","Dropdown","Right","Rechts","Droite"]
["R26","Dropdown","Straight","Gerade","Tout droit"]
["R26","Dropdown","Straight with steep start","Gerade mit Steilstart","Droit avec début raide"]
["R26","Dropdown","Straight start with bottom overrun","Gerade mit horizontalem Auslauf","Début droit avec dépassement du bas"]
["R26","Dropdown","90°","90°","90°"]
["R26","Dropdown","180°","180°","180°"]
["R26","Dropdown","Special curve","Spezialkurve","Courbe spéciale"]
["R27","Dropdown","Straight at last step","Gerade an letzter Stufe","Droit à la dernière étape"]
["R27","Dropdown","Straight top overrun","Gerader Überlauf","Débordement droit"]
["R27","Dropdown","90° on top landing","90° auf oberem Podest","Atterrissage supérieur à 90°"]
["R27","Dropdown","180° on top landing","180° auf oberem Podest","Atterrissage supérieur à 180°"]
["R27","Dropdown","Special curve on top landing","Spezialkurve auf oberem Podest","Courbe spéciale sur le palier supérieur"]
["R34","Dropdown","RAL 7035 (standard)","RAL 7035 (Standard)"]
["R34","Dropdown","special RAL","Spezial RAL"]
["R34","Dropdown","zinc + RAL 7035","Verzinkt + RAL 7035"]
["R34","Dropdown","zinc + special RAL","Verzinkt + spezial RAL"]
["C36","Label","Design specifications","Sitz Design Optionen","Les spécifications de conception"]
["D37","Label","Execution","Ausführung","Exécution"]
["D38","Label","Seat design type","Sitz Design Typ","Type de conception du siège"]
["D39","Label","Upholstery","Sitzfarbe","Tapisserie"]
["D40","Label","Automatic footrest folding","Automatisches Fußbrett","Repose-pied automatique"]
["D41","Label","Automatic seat swivel","Automatischer Drehsitz","Siège pivotant automatique"]
["D42","Label","Bigger armrest distance (+100mm)","Größere Distanz zwischen Armlehnen ","Plus grande distance d'accoudoir (+ 100mm)"]
["D43","Label","Joystick position side","Joystickposition","Position du joystick"]
["D44","Label","External landing controls (always radio)","Externe Landekontrollen (immer Radio)","Contrôles d'atterrissage externes (toujours radio)"]
["D45","Label","Type of key","Art des Schlüssels","Type de clé"]
["D46","Label","Total no. of external landing controls","Anzahl Fernbedienungen gesamt","Nombre total de contrôles d'atterrissage externes"]
["D47","Label","Postion of external controls","Stellung externer Kontrollen","Position des contrôles externes"]
["R37","Dropdown","Stairlift + rail (standard)","Kompletter Lift "]
["R37","Dropdown","Rail only","Nur Schiene"]
["AS39","Label","Blue","Blau","Bleu"]
["AS40","Label","Red","rot","rouge"]
["AS41","Label","Brown","Braun","marron"]
["AS42","Label","Green","Grün","vert"]
["AS43","Label","Beige","Beige","Beige"]
["AS44","Label","Light gray","Hellgrau","Gris clair"]
["AT39","Label","Marine blue","Marineblau","Bleu marine"]
["AT40","Label","Emerald green","Smaragdgrün","vert émeraude"]
["AT41","Label","Ruby red","Rubinrot","rouge rubis"]
["AT42","Label","Pearl white","Perlweiss","Perle blanche"]
["AT43","Label","Walnut brown","Walnussbraun","Marron"]
["AT44","Label","Safran yellow","Safran-Gelb","Jaune safran"]
["AU39","Label","Marine blue","Marineblau","Bleu marine"]
["AU40","Label","Emerald green","Smaragdgrün","vert émeraude"]
["AU41","Label","Ruby red","Rubinrot","rouge rubis"]
["AU42","Label","Pearl white","Perlweiss","Perle blanche"]
["AU43","Label","Walnut brown","Walnussbraun","Marron"]
["AU44","Label","Safran yellow","Safran-Gelb","Jaune safran"]
["AV39","Label","Olive (woven textile)","Olive (gewebtes Textil)","Olive (textile tissé)"]
["AV40","Label","Granite (woven textile)","Granit (gewebtes Textil)","Granite (textile tissé)"]
["AV41","Label","Bordeaux (woven textile)","Bordeaux (gewebtes Textil)","Bordeaux (textile tissé)"]
["AV42","Label","Marble (woven textile)","Marmor (gewebtes Textil)","Marbre (textile tissé)"]
["AV43","Label","Ivory (woven textile)","Elfenbein (gewebtes Textil)","Ivoire (textile tissé)"]
["AV44","Label","Basalt (artificial leather)","Basalt (Kunstleder)","Basalte (cuir artificiel)"]
["AV45","Label","Burgundy (artificial leather)","Burgund (Kunstleder)","Bourgogne (cuir artificiel)"]
["AV46","Label","Mocha (artificial leather)","Mokka (Kunstleder)","Moka (cuir artificiel)"]
["R39","Switch","Blue","Blau","Bleu"]
["R39","Switch","Red","rot","rouge"]
["R39","Switch","Brown","Braun","marron"]
["R39","Switch","Green","Grün","vert"]
["R39","Switch","Beige","Beige","Beige"]
["R39","Switch","Light gray","Hellgrau","Gris clair"]
["R39","Switch","Marine blue","Marineblau","Bleu marine"]
["R39","Switch","Emerald green","Smaragdgrün","vert émeraude"]
["R39","Switch","Ruby red","Rubinrot","rouge rubis"]
["R39","Switch","Pearl white","Perlweiss","Perle blanche"]
["R39","Switch","Walnut brown","Walnussbraun","Marron"]
["R39","Switch","Safran yellow","Safran-Gelb","Jaune safran"]
["R39","Switch","Olive (woven textile)","Olive (gewebtes Textil)","Olive (textile tissé)"]
["R39","Switch","Granite (woven textile)","Granit (gewebtes Textil)","Granite (textile tissé)"]
["R39","Switch","Bordeaux (woven textile)","Bordeaux (gewebtes Textil)","Bordeaux (textile tissé)"]
["R39","Switch","Marble (woven textile)","Marmor (gewebtes Textil)","Marbre (textile tissé)"]
["R39","Switch","Ivory (woven textile)","Elfenbein (gewebtes Textil)","Ivoire (textile tissé)"]
["R39","Switch","Basalt (artificial leather)","Basalt (Kunstleder)","Basalte (cuir artificiel)"]
["R39","Switch","Burgundy (artificial leather)","Burgund (Kunstleder)","Bourgogne (cuir artificiel)"]
["R39","Switch","Mocha (artificial leather)","Mokka (Kunstleder)","Moka (cuir artificiel)"]
["R40","Dropdown","Yes","Ja","Oui"]
["R40","Dropdown","No","Nein","Non"]
["R41","Dropdown","Yes","Ja","Oui"]
["R41","Dropdown","No","Nein","Non"]
["R42","Dropdown","Yes","Ja","Oui"]
["R42","Dropdown","No","Nein","Non"]
["R43","Dropdown","On downstairs side (standard)","Talseitig","Côté bas (standard)"]
["R43","Dropdown","On upstairs side (optional)","Bergseitig","Du côté de l'étage (facultatif)"]
["R44","Dropdown","Membrane keypad (standard)","Folientastatur (Standard)","Clavier à membrane (standard)"]
["R44","Dropdown","Big push buttons","Großer Taster","Gros boutons poussoirs"]
["R45","Dropdown","Without key","Ohne Schlüssel","Sans clé"]
["R45","Dropdown","Mini key","Minischlüssel","Mini clé"]
["R47","Dropdown","Handset","Handkassette","Combiné"]
["R47","Dropdown","Wall-mounted","Wantmontiert","Mural"]
["R47","Dropdown","Pillar-mounted","Stützenmontiert","Monté sur pilier"]
["C49","Label","Further options","Zusätzliche Optionen"]
["D50","Label","Plastic cover for outdoor stairlift","Plastic cover for outdoor stairlift"]
["D54","Label","Warranty time","Warranty time"]
["D55","Label","Stainless steel label","Stainless steel label"]
["D56","Label","Transport box","Transportbox"]
["D59","Label","Drawing time urgency in working days","Drawing time urgency in days"]
["D60","Label","Service display","Service display"]
["D61","Label","Plastic cover for footplates","Kunststoffabdeckung für Stützenfüße"]
["D62","Label","Stand-up seat version (up to 120 kg)","Variante Stehsitz (bis zu 120 kg)"]
["D63","Label","Higher loading capacity of 145kg","Höhere Traglast bis 145 kg"]
["D64","Label","Optional user dimensions","Benutzergröße (optional)"]
["D65","Label","Extra heavy batteries","Extra starke Batterien"]
["R64","Label","Height from seat to head:","Maß Sitz bis Kopf"]
["AC64","Label","Distance from back to knees:","Maß Rücken bis Knie"]
["R50","Dropdown","Yes","Ja","Oui"]
[{"$f":"A146","v":"R50"},"Dropdown","No","Nein","Non"]
["R60","Dropdown","Yes","Ja","Oui"]
[{"$f":"A148","v":"R60"},"Dropdown","No","Nein","Non"]
["R61","Dropdown","Yes","Ja","Oui"]
[{"$f":"A150","v":"R61"},"Dropdown","No","Nein","Non"]
["R62","Dropdown","Yes","Ja","Oui"]
[{"$f":"A152","v":"R62"},"Dropdown","No","Nein","Non"]
["R63","Dropdown","Yes","Ja","Oui"]
[{"$f":"A154","v":"R63"},"Dropdown","No","Nein","Non"]
["C67","Label","Supporting structure","Art der Befestigung"]
["D68","Label","Fixing of the rails","Fixierung der Schiene"]
["R68","Dropdown","into the steps (standard)","Auf Stützen in die Treppe"]
["R68","Dropdown","clamp fixing on the steps","Mit Klemmen an die Treppe"]
["R68","Dropdown","on the wall with supporting pillars","An die Wand"]
["C72","Label","Additional information","Zusätzliche Information"]
["C81","Label","Delivery date","Lieferdatim:"]
["W81","Label","Prepared by","Bearbeitet von:"]
["K81","Label","Week","Woche","la semaine"]

{"sheet":"Setup","index":4,"n_rows":1,"n_cols":2,"rows_kept":1,"cut":false,"hidden":true,"merged":[]}
["Language","English"]